Cogmind - Beta 17 @@@ ROGUE MODE // 2026.08.04 @ 12:43:29 Player: Kyzrati Result: Escaped! Performance ------------- Evolutions (9) 4500 Regions Visited (25) 5000 Robots Destroyed (549) 2745 Value Destroyed (30282) 30282 Prototype IDs (75) 1500 Alien Tech Used (10) 2000 Bonus (42260) 42260 TOTAL SCORE: 88287 Bonus ------- Triggered High Security 500 High Alert Combat Kills 10715 Follower Combat Kills 2530 Prayed to X0-1V1 5000 Major X0-1V1 Interference 15950 Entered Garrisons 400 Entered DSFs 500 Met Data Miner 300 Acquired ECA 300 Met Warlord at Base 500 MAIN.C Attacked Warlord 500 Warlord Defense Kills 2268 Win 3000 Friendly Fire -203 Cogmind --------- Core Integrity 444/1360 Matter 540/800 Energy 911/915 System Corruption 3% Temperature Cool (0) Movement Rolling (148) Ox4 Location To Epsilon Eridani Parts ------- > --- POWER (4) -------- Antimatter Reactor Quantum Reactor Quantum Reactor Light Quantum Reactor > --- PROPULSION (6) --- Centrium Heavy Treads Wheel Wheel High-density Centrium Wheel High-density Centrium Wheel > --- UTILITY (11) ----- Huge Storage Unit Advanced Terrain Scanner Experimental Core Analyzer Advanced Weapon Cycler Experimental Cloaking Device Heavy Regenerative Plating Phase Armor Graphene Brace Phase Redirector > --- WEAPON (5) ------- Compact HERF Cannon Compact HERF Cannon Enhanced Nova Cannon Enhanced Nova Cannon Hellfire Missile Launcher > --- INVENTORY (30) --- Armored Heavy Treads Wheel Experimental Matter Compressor (477) Heavy Armor Plating Improved Point Defense System System Shield System Purifier Integrity Redistributor Integrity Redistributor Subatomic Replicator Vortex Driver (26) Core Cannon Gamma Bomb Array Chaos Jack (30) Heavy Scimitar of Distortion Sigix Broadsword Peak State ------------ > --- POWER ------------ Graviton Reactor Quantum Reactor Improved Quantum Reactor Matter Drive > --- PROPULSION ------- Centrium Heavy Treads Centrium Wheel Centrium Wheel High-density Centrium Wheel High-density Centrium Wheel > --- UTILITY ---------- Huge Storage Unit Seismic Detector Experimental Targeting Computer Experimental Core Analyzer Experimental Cloaking Device Experimental Cloaking Device Centrium Medium Armor Plating Heavy Regenerative Plating Improved Force Field X0-1V1's Piety Tracker > --- WEAPON ----------- Enhanced Nova Cannon Multirail Multirail Multirail > --- INVENTORY -------- Armored Heavy Treads Experimental Matter Compressor Advanced Terrain Scanner Advanced Weapon Cycler Phase Armor Experimental Focal Shield Advanced Thermal Shield Phase Redirector Improved Point Defense System System Purifier Transdimensional Reconstructor Integrity Redistributor Integrity Redistributor Integrity Redistributor Subatomic Replicator Compact HERF Cannon Compact HERF Cannon Compact HERF Cannon Vortex Driver Core Cannon Helical Railgun Gamma Bomb Array Hellfire Missile Launcher Chaos Jack Heavy Scimitar of Distortion Sigix Broadsword [Rating: 254] Favorites ----------- Power Antimatter Reactor Engine Light Ion Engine Power Core Neutrino Core Reactor Antimatter Reactor Propulsion High-density Centrium Wheel Treads Armored Medium Treads Leg Flexi-carbon Leg Wheel High-density Centrium Wheel Utility X0-1V1's Piety Tracker Device X0-1V1's Piety Tracker Storage Large Storage Unit Processor Core Analyzer Hackware Experimental System Shield Protection Centrium Heavy Armor Plating Artifact Phase Armor Weapon Compact HERF Cannon Energy Gun Heavy EM Shotgun Energy Cannon Compact HERF Cannon Ballistic Gun Multirail Ballistic Cannon Mass Driver Launcher Hellfire Missile Launcher Special Weapon Remote Datajack Impact Weapon Heavy Mace Slashing Weapon Scimitar of Distortion Piercing Weapon Plasma Lance Special Melee Weapon Chaos Jack Build | -11 -10 -9 -8 -8 -8 -7 -7 -7 -7 -6 -6 -6 -5 -5 -4 -4 -4 -4 -3 -3 -3 -2 -2 -2 -1 ------- Run | Yrd Mat Mat Mat Gar Mat Fac Low Low Dat Pro Fac Gar Fac DSF Fac Upp Upp War Pro Res Tes Res Qua Sec Acc Slots Evolved 18 | . . 2 2 . . 2 . . . . 2 . 2 . 2 . . . . 2 . 2 . . 2 Power 2 | . . . . . . . . . . . 1 . . . 1 . . . . . . . . . . Propulsion 5 | . . 1 . . . 1 . . . . . . 1 . . . . . . 1 . 1 . . . Utility 8 | . . 1 1 . . . . . . . 1 . 1 . 1 . . . . 1 . 1 . . 1 Weapon 3 | . . . 1 . . 1 . . . . . . . . . . . . . . . . . . 1 Parts Attached 351 | 7 4 10 25 17 10 5 2 1 . 3 21 34 . 11 16 3 3 12 5 41 25 30 22 20 24 Power 69 | 1 1 2 1 4 1 . 1 . . 1 4 9 . 1 4 . 2 1 . 7 6 9 2 7 5 Engine 20 | 1 1 2 1 3 1 . 1 . . . 2 7 . . 1 . . . . . . . . . . Core 10 | . . . . 1 . . . . . 1 2 2 . 1 2 . . . . 1 . . . . . Reactor 39 | . . . . . . . . . . . . . . . 1 . 2 1 . 6 6 9 2 7 5 Propulsion 67 | 2 . 2 9 5 2 3 . 1 . 1 4 7 . 5 . . . 1 1 8 2 4 5 1 4 Treads 41 | 2 . 2 8 4 2 2 . . . 1 2 2 . 4 . . . 1 1 4 1 2 2 1 . Leg 5 | . . . . 1 . . . . . . . 4 . . . . . . . . . . . . . Wheel 21 | . . . 1 . . 1 . 1 . . 2 1 . 1 . . . . . 4 1 2 3 . 4 Hover . | . . . . . . . . . . . . . . . . . . . . . . . . . . Flight . | . . . . . . . . . . . . . . . . . . . . . . . . . . Utility 112 | 2 2 2 5 5 1 2 1 . . 1 4 8 . 4 5 2 . 5 2 14 13 9 9 7 9 Device 61 | 1 1 1 2 3 . 1 1 . . . 2 6 . . 2 1 . 3 2 10 10 1 5 4 5 Storage 10 | 1 1 . 1 . 1 . . . . . . . . . . . . . . 1 . 3 . . 2 Processor 12 | . . . . 1 . . . . . . . 2 . . 2 . . 1 . . 1 4 . . 1 Hackware 4 | . . . . . . . . . . . . . . 1 1 . . . . 2 . . . . . Protection 23 | . . 1 2 1 . 1 . . . 1 2 . . 3 . 1 . 1 . 1 2 1 3 3 . Artifact 2 | . . . . . . . . . . . . . . . . . . . . . . . 1 . 1 Weapon 103 | 2 1 4 10 3 6 . . . . . 9 10 . 1 7 1 1 5 2 12 4 8 6 5 6 Energy Gun 37 | 1 . . 7 1 5 . . . . . 2 1 . 1 4 . . 2 1 7 . 2 3 . . Energy Cannon 16 | . . . . . . . . . . . . 1 . . 1 . . 1 . . 2 3 2 1 5 Ballistic Gun 28 | 1 . 2 2 . . . . . . . 5 6 . . 1 1 1 1 . 4 . 1 . 2 1 Ballistic Cannon 4 | . . 1 . 1 . . . . . . . 1 . . 1 . . . . . . . . . . Launcher 7 | . 1 . . 1 . . . . . . . 1 . . . . . 1 . . 1 1 1 . . Special Weapon 1 | . . . . . . . . . . . . . . . . . . . 1 . . . . . . Impact Weapon 3 | . . . 1 . 1 . . . . . . . . . . . . . . . . 1 . . . Slashing Weapon 6 | . . 1 . . . . . . . . 2 . . . . . . . . 1 1 . . 1 . Piercing Weapon . | . . . . . . . . . . . . . . . . . . . . . . . . . . Special Melee Weapon 1 | . . . . . . . . . . . . . . . . . . . . . . . . 1 . Unidentified Prototypes 57 | . 1 1 2 . 1 . . . . . 2 . . 1 4 . . 6 . 12 7 6 5 6 3 Corrupted Parts 4 | . . . . . . . . . . . . . . . . . . . . . . . . 4 . System Corruption 22 | . . . . . . . . . . . . . . . . . . . . . . . . 22 . Parts Lost 102 | . 1 2 5 10 2 1 1 . . . 6 15 . 3 3 . . 7 4 7 5 4 . 10 16 Power 19 | . 1 1 . 1 . . 1 . . . 2 3 . 1 1 . . . . 2 . 2 . 2 2 Propulsion 18 | . . . 2 3 2 . . . . . 1 3 . . . . . 1 2 1 . . . 1 2 Utility 38 | . . 1 . 4 . 1 . . . . 2 4 . 1 1 . . 4 1 . 5 1 . 6 7 Weapon 27 | . . . 3 2 . . . . . . 1 5 . 1 1 . . 2 1 4 . 1 . 1 5 Highest Loss Streak 7 | . 1 1 3 3 2 1 1 . . . 2 6 . 2 2 . . 7 3 5 2 3 . 4 4 To Critical Strikes 2 | . . . 1 . . . . . . . . . . . . . . . . . . . . 1 . Average Backups 16 | 2 10 15 15 14 12 12 13 13 14 13 13 14 15 14 14 14 14 14 14 13 13 18 24 23 24 Power . | . . . . . . 1 . . . . . . . . . 1 1 . 1 . . . . . . Propulsion 2 | 2 4 5 1 2 3 2 3 3 4 2 1 2 3 3 4 4 3 3 2 2 . 1 1 . 1 Utility 5 | . 2 3 6 6 5 5 5 5 5 5 6 4 5 5 5 3 4 5 3 5 5 6 7 6 7 Weapon 6 | . 2 6 6 5 3 2 3 3 3 3 3 6 5 4 3 6 6 5 6 5 5 9 11 8 9 Tool/Special . | . . . . . . . . . . . . . . . . . . . . . . . . . . Unused Backups 135 | . 1 3 7 . 3 3 . . . . 3 1 . 5 1 2 . 3 . 6 14 25 40 3 15 Power 9 | . . . 2 . . . . . . . . . . . . . . 1 . . 1 1 3 1 . Propulsion 38 | . . . 4 . 3 1 . . . . . . . 2 . . . . . 5 7 7 7 . 2 Utility 45 | . . 1 . . . 1 . . . . 1 . . 3 . 2 . . . . 1 10 18 2 6 Weapon 38 | . 1 2 1 . . 1 . . . . 1 1 . . . . . 2 . 1 5 7 12 . 4 Tool/Special 5 | . . . . . . . . . . . 1 . . . 1 . . . . . . . . . 3 Average Slot Usage (%) 91 | . 99 96 99 97 99 89 92 92 74 92 89 84 88 92 91 93 89 85 84 85 83 85 87 89 88 Engine 4 | . 13 8 9 5 7 7 7 7 7 . 5 8 11 9 3 . . . . . . . . . . Core 1 | . . . . 3 1 . . . . 6 6 3 . . 9 15 10 2 . . . . . . . Reactor 6 | . . . . . . . . . . . . . . . . . 4 10 10 5 12 16 17 16 15 Treads 14 | . 27 33 26 25 26 16 15 11 7 7 6 2 11 15 15 15 15 15 15 15 10 7 7 8 3 Wheel 6 | . . . . . . 6 7 10 15 15 10 7 5 5 5 5 5 5 4 6 5 7 9 13 14 Device 17 | . 14 20 22 18 18 12 7 15 15 7 11 10 14 10 13 13 10 9 16 20 23 21 20 18 20 Storage 6 | . 14 11 9 9 9 7 7 7 7 7 6 6 5 5 5 5 5 5 5 4 4 3 4 4 3 Processor 5 | . . . . 2 9 7 7 7 7 7 6 13 11 11 7 10 10 10 10 8 5 6 8 6 6 Protection 3 | . . . 4 4 . 1 6 . . 6 7 . . 5 4 5 5 4 4 . 3 3 3 5 6 Energy Gun 7 | . 12 . 12 23 18 23 23 23 5 23 5 1 5 4 5 5 5 2 5 6 6 3 3 . . Energy Cannon 2 | . . . . . . . . . . . . . . . . . . 2 . . . 7 9 8 6 Ballistic Gun 7 | . 13 19 14 . . . . . . . 14 14 17 13 8 5 9 9 9 9 6 2 . 3 8 Peak Build Rating 254 | 7 20 26 48 50 49 59 60 61 61 63 85 88 76 97 117 118 121 139 130 200 195 230 233 244 254 Average Rating 120 | 5 7 24 37 47 46 54 59 60 50 62 71 77 74 88 108 114 118 128 126 160 177 205 215 227 234 On Entrance 93 | . 7 20 26 48 49 44 59 60 61 61 62 80 70 76 97 113 118 121 121 127 164 192 204 232 222 Avg Prop Armor Cover (%) 11 | . . . 12 5 . 13 11 11 10 6 7 10 15 16 17 16 13 13 17 19 5 13 12 8 5 Naked Turns . | . . . . . . . . . . . . . . . . . . . . . . . . . . Heaviest Build 283 | 11 28 35 46 53 49 53 53 47 47 54 69 65 59 73 92 102 102 138 98 119 161 246 238 251 283 Greatest Support 160 | 40 40 60 84 84 70 60 28 40 40 40 70 70 28 28 28 28 28 28 81 36 160 40 85 115 72 Greatest Overweight (x) 6 | . . . 4 . 1 1 1 1 1 1 2 2 2 2 3 3 3 4 3 5 5 6 5 4 4 Average Overweight (x) 2 | . . . . . . . 1 1 . 1 1 1 2 2 2 3 3 3 2 3 . 4 3 3 2 Largest Inventory Capacity 30 | 8 16 16 16 16 16 16 16 16 16 16 16 16 16 16 16 16 16 16 16 16 16 26 26 30 30 Average Capacity 18 | 7 11 16 16 16 16 16 16 16 16 16 16 16 16 16 16 16 16 16 16 16 16 21 26 28 30 Most Carried 30 | 4 14 16 16 16 16 16 16 16 16 16 16 16 16 16 16 16 16 16 16 16 16 26 26 30 30 Average Carried 17 | 2 10 15 15 15 15 15 15 15 16 15 15 15 14 14 15 15 15 15 15 15 15 18 25 27 28 Final Capacity 30 | 8 16 16 16 16 16 16 16 16 16 16 16 16 16 16 16 16 16 16 16 16 16 26 26 30 30 Final Carried 27 | 4 14 16 16 16 16 15 15 16 16 16 16 16 14 16 16 16 16 16 15 16 15 26 26 27 20 Class Distribution -------------------- 25% | Generator-Tank 18% | Gunner 15% | Mutant 13% | Scavenger-Tank 8% | Tank 5% | Scavenger-Gunner 3% | Scavenger-Skirmisher Dominant Class ---------------- Mutant | -10/Materials Mutant | -9/Materials Scavenger-Skirmisher | -8/Materials Tank | -8/Garrison Gunner | -8/Materials Gunner | -7/Factory Gunner | -7/Lower Caves Gunner | -7/Lower Caves Mutant | -7/Data Miner Gunner | -6/Proximity Caves Scavenger-Tank | -6/Factory Scavenger-Gunner | -6/Garrison Scavenger-Gunner | -5/Factory Scavenger-Tank | -5/DSF Scavenger-Tank | -4/Factory Scavenger-Skirmisher | -4/Upper Caves Gunner | -4/Upper Caves Gunner | -4/Warlord Gunner | -3/Proximity Caves Scavenger-Executioner | -3/Research Generator-Tank | -3/Testing Generator-Tank | -2/Research Generator-Tank | -2/Quarantine Generator-Tank | -2/Section 7 Scavenger-Tank | -1/Access Resources | -11 -10 -9 -8 -8 -8 -7 -7 -7 -7 -6 -6 -6 -5 -5 -4 -4 -4 -4 -3 -3 -3 -2 -2 -2 -1 ----------- Run | Yrd Mat Mat Mat Gar Mat Fac Low Low Dat Pro Fac Gar Fac DSF Fac Upp Upp War Pro Res Tes Res Qua Sec Acc Matter Collected 18618 | 283 606 559 731 1146 687 212 20 28 . 201 860 1498 . 371 712 704 123 341 200 1104 1578 1779 565 1445 2865 Remotely . | . . . . . . . . . . . . . . . . . . . . . . . . . . Salvage Created 26248 | 108 862 663 1503 2019 746 664 182 327 . 60 1007 1071 . 501 750 236 144 498 406 2230 2306 991 1813 2857 4304 Parts 1250 | 9 46 46 79 106 32 39 9 7 . . 54 68 . 13 29 4 6 19 16 96 103 43 72 154 200 Haulers Intercepted 10 | . 2 . 2 . 1 1 . . . . . . . 1 1 . . . . 1 . 1 . . . Recyclers Shooed 18 | 1 4 6 1 . . . . . . . . . . . 1 . . . . 2 3 . . . . Parts Field Recycled . | . . . . . . . . . . . . . . . . . . . . . . . . . . Retrieved Matter . | . . . . . . . . . . . . . . . . . . . . . . . . . . Parts Self-Destructed 24 | . . . . . . . 7 1 . . . . . . . 11 5 . . . . . . . . Prevented 5 | . . . . . . . 2 1 . . . . . . . . . . 2 . . . . . . Parts Restored . | . . . . . . . . . . . . . . . . . . . . . . . . . . Kills | -11 -10 -9 -8 -8 -8 -7 -7 -7 -7 -6 -6 -6 -5 -5 -4 -4 -4 -4 -3 -3 -3 -2 -2 -2 -1 ------- Run | Yrd Mat Mat Mat Gar Mat Fac Low Low Dat Pro Fac Gar Fac DSF Fac Upp Upp War Pro Res Tes Res Qua Sec Acc Combat Hostiles Destroyed 433 | . 13 13 26 50 13 7 3 5 . 1 13 25 . 9 10 4 5 16 7 22 29 27 23 39 73 Melee 16 | . . . . . . 1 . . . . 1 11 . . . . . . . 2 . 1 . . . Guns 220 | . 5 10 26 26 8 6 3 3 . . 11 5 . 5 5 4 5 4 7 19 27 2 . 18 21 Cannons 56 | . . . . 11 5 . . . . . . . . 2 2 . . 3 . . 1 4 2 11 15 AOE 107 | . 8 3 . 11 . . . 1 . 1 . 9 . 2 3 . . 9 . . 1 18 5 6 30 Classes Destroyed 32 | 2 5 2 3 2 . 1 1 2 . . 2 2 . 1 . . . 5 1 . . . 1 2 . Worker 34 | . 5 3 2 . 3 2 . . . . 4 . . . . . . . . 2 3 . . 4 6 Builder 20 | . . . 1 . . 2 . . . . 2 . . . 1 . . . . . 1 1 . 5 7 Tunneler 9 | 2 4 1 . . . . . . . . 1 . . . . . . . . 1 . . . . . Hauler 10 | . 2 . 2 . 1 1 . . . . . . . 1 1 . . . . 1 . 1 . . . Recycler 23 | 1 6 2 1 . . . . . . . 1 . . . 2 . . . . 5 3 . . . 2 Minesweeper 1 | . . . . . . . . 1 . . . . . . . . . . . . . . . . . Mechanic 3 | . . . . . . . . . . . 1 . . . . . . . . . . . 1 . 1 Operator 5 | . . . . . . 2 . . . . . . . . 1 . . . . . 1 . . 1 . Drone 2 | . . . . . . . . . . . . . . . . . . . 2 . . . . . . Watcher 10 | . 3 . 1 . . 1 . . . . . . . . 2 . . . . . . . 1 1 1 Swarmer 79 | . 9 . 3 12 . . 1 . . . . 8 . . 3 . 5 . . 3 . 13 . 5 17 Cutter 1 | . . . . 1 . . . . . . . . . . . . . . . . . . . . . Saboteur 5 | . . . . . . . . . . . . 4 . . . . . 1 . . . . . . . Grunt 154 | . 4 9 10 19 8 3 1 1 . 1 4 5 . 5 . 3 . 7 . 8 7 6 12 13 28 Brawler 15 | . . . 1 3 . 1 . . . . . . . 1 . 1 . . . 1 2 . . . 5 Duelist 8 | . . 1 1 2 1 . . . . . . . . . . . . . . . . . . 1 2 Protector 5 | . . . . . . . . . . . . . . . . . . 1 . . . . . 2 2 Researcher 1 | . . . . . . . . . . . . . . . . . . . . . . . . 1 . Sentry 45 | . . 3 10 7 3 2 . . . . 3 1 . 1 3 . . . 1 . 3 . . 5 3 Demolisher 2 | . . . . . . . . . . . . . . . . . . 1 . . . . 1 . . Specialist 5 | . . . . . . . . . . . . . . 1 . . . 1 . 1 2 . . . . Hunter 22 | . . . 1 . 1 . . . . . 1 6 . . 1 . . . . . 6 . . 2 4 Programmer 53 | . . . . 5 . 1 1 . . . 4 . . . 2 . . 2 . 9 8 2 . 8 11 Heavy 3 | . . . . . . . . . . . 1 . . 1 . . . . . . . . . . 1 Behemoth 2 | . . . . . . . . . . . . 1 . . 1 . . . . . . . . . . Quarantine Guard 10 | . . . . . . . . . . . . . . . . . . . . . . . 10 . . S7 Guard 1 | . . . . . . . . . . . . . . . . . . . . . . . . 1 . Striker 6 | . . . . . . . . . . . . . . . . . . 1 . . . 5 . . . Executioner 1 | . . . . . . . . . . . . . . . . . . 1 . . . . . . . Alpha 7 2 | . . . . . . . . . . . . . . . . . . . . . . . . 2 . Protovariant H 1 | . . . . . . . . . . . . . . . . . . . . . 1 . . . . Botcube 1 | . . . . . . . . . . . . . . . . . . . . . . . 1 . . Decomposer 1 | . . . . . . . . . . . . . . . . . 1 . . . . . . . . Samaritan 2 | . . . . . . . 1 . . . . . . . . . . . . . . 1 . . . Thug 5 | . . . . . . . . 1 . . . . . . . . . . 4 . . . . . . Guerrilla 2 | . . . . 1 . . . . . . . . . . . . . . . . . 1 . . . Fireman 3 | . . . . . . . . 3 . . . . . . . . . . . . . . . . . Mutant 1 | . . . . . . . . . . . . . . . . . . 1 . . . . . . . Best Kill Streak 23 | 3 4 4 9 8 7 8 3 4 . 1 2 7 . 7 5 2 5 10 4 14 4 7 9 9 23 Combat Bots Only 13 | . 3 4 9 8 5 3 3 4 . 1 2 7 . 7 4 2 5 10 4 7 4 6 7 7 13 Max Kills in Single Turn 6 | 1 3 2 2 3 2 1 1 1 . 1 1 6 . 2 2 1 1 4 2 2 2 5 3 4 5 Gunslinging 2 | . . . 1 1 . . . . . . . . . . . . . . . . 1 . . . 2 Exploded 6 | . 3 2 . 3 . . . 1 . 1 . 6 . 1 2 . . 4 . . 1 5 2 3 5 Melee 1 | . . . . . . 1 . . . . 1 1 . . . . . . . 1 . 1 . . . Uniques/NPCs Destroyed . | . . . . . . . . . . . . . . . . . . . . . . . . . . Combat | -11 -10 -9 -8 -8 -8 -7 -7 -7 -7 -6 -6 -6 -5 -5 -4 -4 -4 -4 -3 -3 -3 -2 -2 -2 -1 -------- Run | Yrd Mat Mat Mat Gar Mat Fac Low Low Dat Pro Fac Gar Fac DSF Fac Upp Upp War Pro Res Tes Res Qua Sec Acc Hostile Shots Fired 2835 | . 30 58 96 204 43 44 24 18 . 3 264 209 . 50 130 18 23 198 28 171 208 171 81 440 324 Missed 768 | . 11 17 25 56 6 14 8 4 . 1 86 46 . 15 39 9 10 63 10 40 56 45 29 88 90 Hits 2067 | . 19 41 71 148 37 30 16 14 . 2 178 163 . 35 91 9 13 135 18 131 152 126 52 352 234 Melee 43 | . . 3 6 3 4 . . . . . . . . 1 . . . . . . 1 12 . 3 10 Projectile 2024 | . 19 38 65 145 33 30 16 14 . 2 178 163 . 34 91 9 13 135 18 131 151 114 52 349 224 AOE 19 | . . . . 1 . . . . . . 1 2 . . 3 . . 1 . . 1 8 2 . . Critical Strikes 102 | . . . 4 5 1 1 1 1 . . 2 4 . 2 . . . 8 1 4 13 6 6 30 13 Actively Blocked 4 | . . . . . . . . . . . . . . . . . . . . . . . . . 4 Part Disruptions 10 | . . . . 1 . . . . . . . . . 1 . . . 2 . 1 2 . . 1 2 Damage Taken 35267 | . 207 575 1138 1946 676 393 244 167 . 39 1931 2939 . 1056 1523 195 199 2477 395 2707 2371 3088 744 5486 4771 Core 2885 | . 13 111 172 192 64 49 14 11 . . 124 387 . 175 110 18 30 168 60 71 156 129 56 422 353 Absorbed by Shields 4490 | . . . . 20 . . . . . . . 21 . . 528 . . 508 . . 656 499 618 1488 152 Reduced by Siege Mode 136 | . . . . . . . . . . . . . . . . . . . . . 19 . 8 79 30 Redirected to Core 425 | . . . . . . . . . . . . . . . . . . . . . . . 33 283 109 Ignored by Resistances 3819 | . . . . . . . . . . . . . . . . . . . . 421 612 212 380 1464 730 Regen/Repaired (Parts) 5889 | . 47 . 74 . . . . . . . 139 . . . 43 . . 168 . . . 489 27 1277 3625 Core Remaining (%) 71 | 100 100 63 . . 68 . . . . 83 . 16 . 76 . . . . 82 . 78 . . 84 32 Volleys Fired 1147 | 13 99 59 63 107 33 16 4 9 . 2 38 26 . 31 32 17 9 23 18 43 102 73 71 148 111 Largest 7 | 2 2 2 3 3 3 3 3 3 . 3 4 4 . 4 4 3 3 3 3 7 3 5 3 3 4 Hottest 399 | 60 60 53 208 209 172 150 150 150 . 150 150 164 . 183 243 150 150 130 140 321 225 399 267 308 308 Shots Fired 2511 | 26 172 116 175 240 86 48 12 27 . 6 105 70 . 71 88 45 27 46 43 158 242 117 121 242 228 Gun 1838 | 26 147 105 175 187 54 48 12 27 . 6 105 63 . 43 56 28 24 25 43 158 233 33 38 107 95 Cannon 569 | . . 9 . 39 32 . . . . . . 5 . 24 26 17 3 11 . . 9 73 80 133 108 Launcher 104 | . 25 2 . 14 . . . . . . . 2 . 4 6 . . 10 . . . 11 3 2 25 Special . | . . . . . . . . . . . . . . . . . . . . . . . . . . Kinetic 1157 | 13 74 114 82 39 32 . . . . . 86 64 . 51 59 31 18 25 29 113 112 13 . 107 95 Thermal 816 | 13 73 . 93 187 54 . . . . . . 4 . 16 21 14 9 . . 28 92 59 41 68 44 Explosive 104 | . 25 2 . 14 . . . . . . . 2 . 4 6 . . 10 . . . 11 3 2 25 Electromagnetic 379 | . . . . . . 48 12 27 . 6 19 . . . 2 . . . 14 11 . 34 77 65 64 Entropic 55 | . . . . . . . . . . . . . . . . . . 11 . 6 38 . . . . Robot Hit Streak 42 | 7 6 10 18 15 20 9 13 11 . 7 14 10 . 32 41 23 4 11 9 28 24 25 39 28 42 Robot Miss Streak 10 | 2 7 3 3 6 2 3 4 3 . 1 2 7 . 3 2 3 2 3 2 2 6 3 2 10 3 Penetration Max 5 | . . . 1 . 1 . . . . . 1 1 . 1 1 . . 1 . 2 2 . . 5 2 Secondary Targets 38 | . . 2 5 4 . 2 1 1 . . 1 2 . . . . 2 . 1 5 5 . . 2 5 Max Gunslinging Chain 2 | . . 1 1 1 . 1 1 1 . . 1 1 . . . . 1 . 1 1 1 . . 1 2 Shots Hit Robots 1774 | 16 77 78 130 143 54 39 15 22 . 5 102 91 . 48 59 28 11 32 31 118 169 63 99 177 167 Core Hits 1253 | 4 44 34 57 85 29 30 8 21 . 4 45 67 . 47 74 10 6 61 14 69 92 59 56 151 186 Critical Kills 40 | . 1 1 . 9 4 1 . . . . 4 . . . . 1 . 1 1 3 4 1 . 5 4 Critical Parts Destroyed 46 | . . . . 7 3 . . . . . 4 . . 1 . . . 1 . 7 16 . . 7 . Critical Strikes 132 | . 1 1 3 27 8 1 . . . . 8 4 . 1 2 2 1 9 2 13 24 2 4 13 6 Burn 18 | . . . 3 11 1 . . . . . . . . . 1 1 1 . . . . . . . . Destroy 78 | . 1 1 . 16 7 . . . . . 2 . . 1 . 1 . 2 2 12 15 1 . 12 5 Blast 1 | . . . . . . . . . . . . . . . 1 . . . . . . . . . . Corrupt 8 | . . . . . . . . . . . . . . . . . . . . 1 . 1 4 1 1 Smash 7 | . . . . . . 1 . . . . 6 . . . . . . . . . . . . . . Sever 4 | . . . . . . . . . . . . 4 . . . . . . . . . . . . . Detonate 7 | . . . . . . . . . . . . . . . . . . . . . 7 . . . . Sunder 9 | . . . . . . . . . . . . . . . . . . 7 . . 2 . . . . Melee Attacks 190 | . . 2 2 14 1 17 5 1 . . 60 58 . . . . . . . 10 . 4 . 16 . Impact 69 | . . . 1 . 1 17 5 1 . . 40 . . . . . . . . . . 4 . . . Slashing 116 | . . 2 1 14 . . . . . . 20 58 . . . . . . . 10 . . . 11 . Piercing 5 | . . . . . . . . . . . . . . . . . . . . . . . . 5 . Sneak Attacks 16 | . . . . . . 4 2 1 . . 7 1 . . . . . . . 1 . . . . . Combat Hostiles 1 | . . . . . . . 1 . . . . . . . . . . . . . . . . . . Follow-up Attacks 6 | . . . . . . . . . . . . 6 . . . . . . . . . . . . . Damage Inflicted 76266 | 156 1733 1616 2389 4451 1217 938 401 720 . 207 2980 4545 . 2221 2668 773 283 3712 829 3898 7360 5490 4860 8761 14058 Guns 32918 | 156 734 1075 2389 2167 803 608 169 409 . 93 1249 1036 . 969 1309 538 283 367 829 3623 6275 561 914 3252 3110 Cannons 13536 | . . 121 . 471 414 . . . . . . 90 . 262 401 235 . 785 . . 255 1137 2401 3813 3151 Explosions 23291 | . 999 420 . 1164 . . . 256 . 114 . 658 . 990 958 . . 2560 . . 814 3619 1545 1401 7793 Melee 6427 | . . . . 646 . 330 232 55 . . 1731 2761 . . . . . . . 269 . 143 . 260 . Ramming 94 | . . . . 3 . . . . . . . . . . . . . . . 6 16 30 . 35 4 Kinetic 20876 | 56 313 1196 897 471 414 . . . . . 1088 1039 . 899 1051 496 143 367 568 2486 2826 204 . 3252 3110 Thermal 15642 | 100 421 317 1492 2167 803 . . 256 . 114 . 87 . 332 577 277 140 . . 661 2572 805 877 2136 1508 Explosive 21397 | . 999 103 . 1164 . . . . . . . 658 . 990 958 . . 2560 . . . 3619 1545 1401 7400 Electromagnetic 8654 | . . . . . . 608 169 409 . 93 161 . . . 82 . . . 261 178 . 689 2438 1677 1889 Impact 2038 | . . . . . . 330 232 55 . . 1278 . . . . . . . . . . 143 . . . Slashing 4378 | . . . . 646 . . . . . . 453 2761 . . . . . . . 269 . . . 249 . Piercing 11 | . . . . . . . . . . . . . . . . . . . . . . . . 11 . Entropic 3176 | . . . . . . . . . . . . . . . . . . 785 . 298 1946 . . . 147 Highest Corruption 47 | . . . . 5 5 . 2 2 2 2 26 26 . 2 5 7 7 9 9 12 22 7 1 47 13 Average Corruption 10 | . . . . 4 5 . 1 2 2 2 9 22 . 1 3 5 7 7 9 8 15 5 1 33 6 Corruption Purged 8 | . . . . . . . . . . . . . . . . . . . . 8 . . . . . Corruption Blocked . | . . . . . . . . . . . . . . . . . . . . . . . . . . Effects 458 | . . . . 39 17 . . 4 . 6 33 51 . 4 10 12 12 4 17 32 70 22 8 93 24 Message Errors 112 | . . . . 9 5 . . 1 . 1 11 11 . 2 2 4 4 1 4 15 13 4 3 18 4 Matter Fused 90 | . . . . 11 4 . . 1 . 4 2 8 . 1 2 3 3 1 6 4 13 3 2 17 5 Heat Flow Errors 41 | . . . . 3 2 . . 1 . . 4 6 . . 1 1 . . 2 1 10 4 1 3 2 Energy Discharges 47 | . . . . 5 . . . . . . 5 5 . . 1 1 3 . 1 4 5 2 1 9 5 Parts Rejected 9 | . . . . 1 1 . . . . . . 2 . . . . . . . . 2 2 . 1 . Parts Fused 7 | . . . . . 1 . . . . . . . . . 1 . . . . 1 4 . . . . Data Loss (minor) 42 | . . . . 3 1 . . 1 . 1 3 5 . . 1 . . . 1 1 4 2 1 15 3 Data Loss (major) 24 | . . . . 2 1 . . . . . 1 5 . . . 1 . 1 2 2 2 . . 5 2 Misfires 18 | . . . . 1 . . . . . . 3 3 . 1 . . 1 1 . . 4 . . 4 . Alerts 15 | . . . . 1 1 . . . . . 2 1 . . . 2 . . . 1 2 1 . 4 . Misdirections 7 | . . . . . . . . . . . 2 1 . . . . . . . 1 2 . . 1 . Weapon Failures 46 | . . . . 3 1 . . . . . . 4 . . 2 . 1 . 1 2 9 4 . 16 3 Overload Shots . | . . . . . . . . . . . . . . . . . . . . . . . . . . Overflow Damage 2416 | . 84 22 . 66 . 117 135 . . . 391 139 . 17 63 18 . 61 . . 41 179 57 561 465 Projectiles 620 | . . 12 . . . . . . . . . . . 17 . 18 . 45 . . . 23 21 447 37 Explosions 1048 | . 84 10 . 40 . . . . . . . 76 . . 63 . . 16 . . 41 140 36 114 428 Melee 748 | . . . . 26 . 117 135 . . . 391 63 . . . . . . . . . 16 . . . Knockbacks 30 | . . 1 . 1 7 4 . . . . 12 . . . 2 2 . . . . . 1 . . . Impact 17 | . . . . . . 4 . . . . 12 . . . . . . . . . . 1 . . . Kinetic 12 | . . 1 . 1 6 . . . . . . . . . 2 2 . . . . . . . . . Secondary 1 | . . . . . 1 . . . . . . . . . . . . . . . . . . . . Self-Inflicted Damage 1038 | . 36 . . 30 . . . . . . . 57 . . 53 . . . . . 349 . . 166 347 Shots 19 | . 1 . . 1 . . . . . . . 1 . . 3 . . . . . 6 . . 2 5 Rammed 10 | . . . . 3 1 . . . . . . . . . . . . . . . 1 1 . 3 1 Targets Rammed 11 | . . . . 3 1 . . . . . . . . . . . . . . 1 1 1 . 3 1 Kicked . | . . . . . . . . . . . . . . . . . . . . . . . . . . Crushed 1 | . . . . . . . . . . . . . . . . . . . . 1 . . . . . Highest Temperature 752 | 40 58 27 390 353 200 302 338 193 . 192 182 375 . 320 413 282 90 335 752 206 472 545 224 492 290 Average Temperature 100 | 18 19 9 94 124 66 102 164 133 . 98 58 128 . 79 130 99 50 105 113 95 127 85 65 139 62 Received Heat Transfer 5268 | . 54 198 297 344 234 111 63 298 . 18 417 213 . 189 75 51 . 308 90 144 107 554 84 708 711 Effects 29 | . . . 3 5 . . . . . . . 2 . 1 3 . . 1 2 . 5 4 . 3 . Shutdowns 9 | . . . . 1 . . . . . . . 1 . . 2 . . . 1 . . 3 . 1 . Energy Bleed 5 | . . . . . . . . . . . . 1 . 1 1 . . 1 1 . . . . . . Interference 9 | . . . 3 3 . . . . . . . . . . . . . . . . 3 . . . . Matter Decay 2 | . . . . . . . . . . . . . . . . . . . . . 1 . . 1 . Damage (minor) 4 | . . . . 1 . . . . . . . . . . . . . . . . 1 1 . 1 . Siege Activations 27 | . . . . . . . . . . . . . . . . . . . . . 4 1 12 7 3 Total Turns 412 | . . . . . . . . . . . . . . . . . . . . . 65 14 142 115 76 Longest Duration 56 | . . . . . . . . . . . . . . . . . . . . . 24 14 24 33 56 Martial Activations . | . . . . . . . . . . . . . . . . . . . . . . . . . . Shielding Activations . | . . . . . . . . . . . . . . . . . . . . . . . . . . Robots Disrupted 1 | . . . . . . . . . . . . . . . . . . . . . . 1 . . . Combat Hostiles 1 | . . . . . . . . . . . . . . . . . . . . . . 1 . . . Robots Corrupted 35 | . . . . . . 3 1 1 . . 3 . . . . . . . . . . 3 15 3 6 Combat Hostiles 28 | . . . . . . . . 1 . . 1 . . . . . . . . . . 2 15 3 6 Parts Fried 93 | . . . . . . 9 3 6 . 1 3 . . . 1 . . . . . . 4 37 16 13 Impact Corruptions 31 | . . . . . . 6 5 . . . 18 . . . . . . . . . . 2 . . . Robots Melted 5 | . . . . 3 . . . . . . . . . . . . . . . . . . 2 . . Combat Hostiles 4 | . . . . 2 . . . . . . . . . . . . . . . . . . 2 . . Parts Melted 43 | . . . 6 15 . . 1 . . . 2 . . . . . 1 . . 12 2 . 4 . . Heat Transferred 20947 | 225 950 250 3071 4736 1591 . . 400 . 50 . 200 . 750 1300 600 350 . . 777 2409 665 970 517 1136 Parts Sabotaged 3 | . . . . . . . . . . . . . . . . . . . . . . . . . 3 Parts Stolen . | . . . . . . . . . . . . . . . . . . . . . . . . . . Parts Stripped 12 | . . . . . . . . . . . . . . . . . . . . 12 . . . . . Power Chain Reactions 6 | . . . . . . . . 4 . 1 . . . . . . . . . . . . . . 1 Alert | -11 -10 -9 -8 -8 -8 -7 -7 -7 -7 -6 -6 -6 -5 -5 -4 -4 -4 -4 -3 -3 -3 -2 -2 -2 -1 ------- Run | Yrd Mat Mat Mat Gar Mat Fac Low Low Dat Pro Fac Gar Fac DSF Fac Upp Upp War Pro Res Tes Res Qua Sec Acc Maximum Alert Level 5 | . 1 . 2 5 4 2 . . . . . 2 1 2 2 . . . . 2 4 3 3 4 5 Low Security (%) 26 | 100 85 100 50 . . . . . . . 100 21 . . 7 . . . . 10 . . . . . Level 1 13 | . 14 . 14 11 . 55 . . . . . 15 100 71 60 . . . . 40 31 . . . . Level 2 20 | . . . 35 12 . 44 . . . . . 62 . 28 32 . . . . 49 32 35 10 29 . Level 3 28 | . . . . 14 73 . . . . . . . . . . . . . . . 32 64 89 43 42 Level 4 6 | . . . . 15 26 . . . . . . . . . . . . . . . 3 . . 26 30 Level 5 3 | . . . . 45 . . . . . . . . . . . . . . . . . . . . 3 High Security 1 | . . . . . . . . . . . . . . . . . . . . . . . . . 23 Max Security . | . . . . . . . . . . . . . . . . . . . . . . . . . . Sterilizations 1 | . . . . . . . . . . . . . . 1 . . . . . . . . . . . Peak Influence 2580 | 5 327 147 454 2375 1157 464 . . . . 98 664 348 496 584 . . . . 621 1108 1073 1094 1539 2580 Initial 1157 | . . 7 10 266 1157 464 . . . . . 39 348 247 260 . . . . 324 333 621 571 614 914 Average 618 | 1 51 54 212 1372 1058 389 . . . . 43 409 348 340 353 . . . . 404 629 850 867 895 1346 Influence Increases 17398 | 15 816 414 768 2249 429 367 70 40 . 20 551 835 5 279 665 181 112 355 110 1229 1361 1179 1217 1771 2360 Destroy 0b10 Robot/C 9560 | . 260 260 520 1080 260 160 60 20 . 20 280 620 . 180 320 160 100 300 100 600 640 600 620 940 1460 Destroy 0b10 Robot/NC 690 | 15 100 30 35 15 20 50 . 5 . . 45 10 . 10 35 . . 10 10 50 50 15 15 65 105 Destroy Leader 1428 | . 60 60 126 30 72 56 10 . . . 80 40 . 20 76 . 10 . . 104 102 52 154 132 244 Allied During Kill 541 | . . . . 25 . 2 . . . . 12 23 . . 33 21 2 . . 19 39 98 84 61 122 Successful Hack 173 | . 18 . 20 . 5 18 . . . . 21 . 5 . . . . . . 18 . . 50 18 . Select Force Hacks 50 | . . . . . . . . . . . . . . . . . . . . 50 . . . . . Disable Machine 1275 | . 225 60 45 30 60 30 . . . . 30 15 . . 75 . . . . 30 180 90 180 180 45 Anti-Garrison Action 750 | . . . . 700 . . . . . . . 50 . . . . . . . . . . . . . Destroy Structure 1754 | . 153 4 7 144 12 21 . . . . 23 32 . 54 96 . . . . 28 178 264 99 330 309 Advance Influence 300 | . . . . . . . . . . . . . . . . . . . . 300 . . . . . Partial Spotted 30 | . . . . . . 15 . . . . . . . . . . . . . . . . . . 15 Lose Combat Pursuer 675 | . . . 15 225 . 15 . 15 . . 60 45 . 15 30 . . 45 . 30 . 60 15 45 60 Miscellaneous 172 | . . . . . . . . . . . . . . . . . . . . . 172 . . . . Influence Decreases 14818 | 15 798 406 384 284 1782 936 298 184 81 20 494 228 316 136 622 586 246 130 299 672 848 1269 1141 1338 1305 Entered New Map 5658 | . . 11 16 144 1218 558 168 44 81 . . 18 316 106 236 200 26 . 225 12 260 485 445 478 611 Time Decay 7022 | 15 488 375 318 . 334 368 120 140 . 20 386 . . . 356 386 200 60 34 470 518 644 676 640 474 Search Patrol Dispatched 100 | . . . . . . . . . . . . . . . . . . . . 100 . . . . . Lost Part 1020 | . 10 20 50 100 20 10 10 . . . 60 150 . 30 30 . . 70 40 70 50 40 . 100 160 Lost Ally 568 | . . . . 40 60 . . . . . 48 60 . . . . 20 . . 20 20 100 20 120 60 Purge Threat 450 | . 300 . . . 150 . . . . . . . . . . . . . . . . . . . . Squads Dispatched 114 | . 2 1 7 . 3 4 . . . . 9 . 1 2 4 . . . . 9 10 5 9 10 38 Investigation 19 | . 1 1 2 . . 1 . . . . 3 . 1 . . . . . . 2 . 2 2 1 3 Extermination 21 | . . . . . . 2 . . . . 3 . . . 1 . . . . 3 4 . 1 3 4 Reinforcement 31 | . 1 . 2 . 2 1 . . . . 3 . . 2 1 . . . . 2 4 3 2 2 6 Assault 30 | . . . . . 1 . . . . . . . . . 2 . . . . . 2 . 2 4 19 Garrison 13 | . . . 3 . . . . . . . . . . . . . . . . 2 . . 2 . 6 Intercept . | . . . . . . . . . . . . . . . . . . . . . . . . . . Searches Triggered 1 | . . . . . . . . . . . . . . . . . . . . 1 . . . . . Data Miner Redirects 2 | . . . . . . . . . . . 2 . . . . . . . . . . . . . . Construction Impeded 4 | . . . . . . . . . . . . . . . . . . . . . . . . 1 3 Haulers Reinforced 3 | . . . . . . . . . . . 1 . . . . . . . . . . 2 . . . Active Scanning Responses . | . . . . . . . . . . . . . . . . . . . . . . . . . . Cargo Convoy Interrupts 1 | . . . . . . . . . . . . . . . . . . . . 1 . . . . . Stealth | -11 -10 -9 -8 -8 -8 -7 -7 -7 -7 -6 -6 -6 -5 -5 -4 -4 -4 -4 -3 -3 -3 -2 -2 -2 -1 --------- Run | Yrd Mat Mat Mat Gar Mat Fac Low Low Dat Pro Fac Gar Fac DSF Fac Upp Upp War Pro Res Tes Res Qua Sec Acc Distress Signals 37 | . 2 . 5 . 1 . . . . . . . . . . . . . . 3 6 11 3 2 4 Communications Jammed . | . . . . . . . . . . . . . . . . . . . . . . . . . . Distress Signals . | . . . . . . . . . . . . . . . . . . . . . . . . . . Times Spotted 711 | . 30 17 36 65 25 14 6 6 . 1 24 32 . 10 22 8 5 53 9 37 50 50 34 70 107 Peak Tracking Total 15 | . 7 4 5 7 7 4 6 4 . 1 4 9 . 7 6 5 5 15 4 9 7 11 10 9 12 Tactical Retreats 39 | . . . 1 12 . 1 . 1 . . 3 2 . 1 2 . . 2 . 2 . 4 1 3 4 Traps | -11 -10 -9 -8 -8 -8 -7 -7 -7 -7 -6 -6 -6 -5 -5 -4 -4 -4 -4 -3 -3 -3 -2 -2 -2 -1 ------- Run | Yrd Mat Mat Mat Gar Mat Fac Low Low Dat Pro Fac Gar Fac DSF Fac Upp Upp War Pro Res Tes Res Qua Sec Acc Traps Triggered 14 | . 1 . . 2 . . . . . . 2 3 . 2 1 . . . . . 1 . . 1 1 Indirectly . | . . . . . . . . . . . . . . . . . . . . . . . . . . Trap Hack Attempts . | . . . . . . . . . . . . . . . . . . . . . . . . . . Triggered . | . . . . . . . . . . . . . . . . . . . . . . . . . . Disarmed . | . . . . . . . . . . . . . . . . . . . . . . . . . . Reprogrammed . | . . . . . . . . . . . . . . . . . . . . . . . . . . Reused . | . . . . . . . . . . . . . . . . . . . . . . . . . . Traps Extracted . | . . . . . . . . . . . . . . . . . . . . . . . . . . Installed 3 | . . . . . . . . 3 . . . . . . . . . . . . . . . . . Triggered . | . . . . . . . . . . . . . . . . . . . . . . . . . . Machines | -11 -10 -9 -8 -8 -8 -7 -7 -7 -7 -6 -6 -6 -5 -5 -4 -4 -4 -4 -3 -3 -3 -2 -2 -2 -1 ---------- Run | Yrd Mat Mat Mat Gar Mat Fac Low Low Dat Pro Fac Gar Fac DSF Fac Upp Upp War Pro Res Tes Res Qua Sec Acc Machines Disabled 104 | . 15 4 3 14 4 2 . . . . 2 2 . . 5 1 . . . 2 12 6 12 17 3 Max in Single Turn 4 | . 4 3 1 2 1 1 . . . . 1 1 . . 1 . . . . 1 2 1 1 2 1 Garrison Access 3 | . . . . . . . . . . . . . . . 1 . . . . . . 1 1 . . Garrison Relay 8 | . . . . 7 . . . . . . . 1 . . . . . . . . . . . . . Phase Generator 1 | . . . . 1 . . . . . . . . . . . . . . . . . . . . . Energy Cycler 1 | . . . . . . . . . . . . . . . . . . . . . . . . . 1 Machines Repaired . | . . . . . . . . . . . . . . . . . . . . . . . . . . Machines Dismantled . | . . . . . . . . . . . . . . . . . . . . . . . . . . Machines Sabotaged . | . . . . . . . . . . . . . . . . . . . . . . . . . . Overloaded Fab Kills 5 | . . . . . . . . . . . . . . . . . . . . 5 . . . . . Hacking | -11 -10 -9 -8 -8 -8 -7 -7 -7 -7 -6 -6 -6 -5 -5 -4 -4 -4 -4 -3 -3 -3 -2 -2 -2 -1 --------- Run | Yrd Mat Mat Mat Gar Mat Fac Low Low Dat Pro Fac Gar Fac DSF Fac Upp Upp War Pro Res Tes Res Qua Sec Acc Machines Accessed 74 | . 7 3 6 3 5 3 . . 4 . 5 . 1 . 3 2 . 1 . 5 3 1 8 10 4 Terminals 42 | . 6 2 1 3 5 2 . . . . 1 . 1 . 1 . . . . 2 1 1 5 9 2 Fabricators 2 | . . . . . . . . . . . 1 . . . . . . . . 1 . . . . . Repair Stations 7 | . 1 1 2 . . . . . . . 2 . . . 1 . . . . . . . . . . Recycling Units . | . . . . . . . . . . . . . . . . . . . . . . . . . . Scanalyzers 11 | . . . 2 . . . . . . . . . . . . . . . . 1 2 . 3 1 2 Garrison Access 5 | . . . 1 . . 1 . . . . 1 . . . 1 . . . . 1 . . . . . Total Hacks 180 | . 26 6 16 6 10 7 . . 32 . 11 . 3 . 9 4 . 1 . 8 3 2 15 14 7 Successful 90 | . 15 1 7 1 4 2 . . 32 . 5 . 1 . 4 4 . 1 . 2 1 . 4 6 . Failed 90 | . 11 5 9 5 6 5 . . . . 6 . 2 . 5 . . . . 6 2 2 11 8 7 Catastrophic 27 | . 3 1 . 2 1 2 . . . . 1 . . . . . . . . 4 1 2 4 2 4 Database Lockouts . | . . . . . . . . . . . . . . . . . . . . . . . . . . Manual 41 | . 16 . 1 . 7 3 . . . . 3 . . . . . . 1 . 2 1 . 4 2 1 Terminals 91 | . 23 4 2 6 10 5 . . . . 3 . 3 . 4 . . . . 3 1 2 9 13 3 Fabricators 3 | . . . . . . . . . . . 2 . . . . . . . . 1 . . . . . Repair Stations 16 | . 3 2 5 . . . . . . . 4 . . . 2 . . . . . . . . . . Recycling Units . | . . . . . . . . . . . . . . . . . . . . . . . . . . Scanalyzers 22 | . . . 7 . . . . . . . . . . . . . . . . 2 2 . 6 1 4 Garrison Access 11 | . . . 2 . . 2 . . . . 2 . . . 3 . . . . 2 . . . . . Terminal Hacks 59 | . 6 . 1 1 4 . . . 32 . . . 1 . 1 4 . 1 . 1 . . 2 5 . Record 15 | . . . . . . . . . 11 . . . . . . 3 . . . . . . 1 . . Part Schematic 12 | . . . . . . . . . 12 . . . . . . . . . . . . . . . . Robot Schematic 6 | . . . . . . . . . 6 . . . . . . . . . . . . . . . . Prototype ID Bank 7 | . 2 . . . 1 . . . 3 . . . . . . . . . . . . . 1 . . Open Door 7 | . . . . 1 . . . . . . . . . . . 1 . 1 . . . . . 4 . Open DSF 1 | . . . . . . . . . . . . . 1 . . . . . . . . . . . . Level Access Points 1 | . . . . . . . . . . . . . . . . . . . . . . . . 1 . Branch Access Points 3 | . 1 . 1 . . . . . . . . . . . 1 . . . . . . . . . . Emergency Access Points 1 | . . . . . . . . . . . . . . . . . . . . 1 . . . . . Alert Level 1 | . . . . . 1 . . . . . . . . . . . . . . . . . . . . Unreport Threat 3 | . 2 . . . 1 . . . . . . . . . . . . . . . . . . . . Locate Traps 1 | . 1 . . . . . . . . . . . . . . . . . . . . . . . . Hauler Manifests 1 | . . . . . 1 . . . . . . . . . . . . . . . . . . . . Fabricator Hacks 1 | . . . . . . . . . . . 1 . . . . . . . . . . . . . . Build 1 | . . . . . . . . . . . 1 . . . . . . . . . . . . . . Repair Station Hacks 10 | . 2 1 2 . . . . . . . 3 . . . 2 . . . . . . . . . . Scan Component 6 | . 1 1 1 . . . . . . . 2 . . . 1 . . . . . . . . . . Repair 4 | . 1 . 1 . . . . . . . 1 . . . 1 . . . . . . . . . . Recycling Unit Hacks . | . . . . . . . . . . . . . . . . . . . . . . . . . . Scanalyzer 4 | . . . 2 . . . . . . . . . . . . . . . . . 1 . 1 . . Insert Component 1 | . . . . . . . . . . . . . . . . . . . . . 1 . . . . Retrieve Study 3 | . . . 2 . . . . . . . . . . . . . . . . . . . 1 . . Garrison Access Hacks 4 | . . . 1 . . 1 . . . . 1 . . . 1 . . . . . . . . . . Unlock Access 3 | . . . 1 . . 1 . . . . 1 . . . . . . . . . . . . . . Seal Access 1 | . . . . . . . . . . . . . . . 1 . . . . . . . . . . Unauthorized Hacks 12 | . 7 . 1 . . 1 . . . . . . . . . . . . . 1 . . 1 1 . Terminals 11 | . 7 . 1 . . 1 . . . . . . . . . . . . . . . . 1 1 . Botnet 5 | . 1 . 1 . . 1 . . . . . . . . . . . . . . . . 1 1 . Skim 6 | . 6 . . . . . . . . . . . . . . . . . . . . . . . . Fabricators 1 | . . . . . . . . . . . . . . . . . . . . 1 . . . . . Overload 1 | . . . . . . . . . . . . . . . . . . . . 1 . . . . . Repair Stations . | . . . . . . . . . . . . . . . . . . . . . . . . . . Recycling Units . | . . . . . . . . . . . . . . . . . . . . . . . . . . Scanalyzers . | . . . . . . . . . . . . . . . . . . . . . . . . . . Garrison Access . | . . . . . . . . . . . . . . . . . . . . . . . . . . Data Cores Recovered 2 | . . . . . . 1 . . . . . . . . . . . . . . . . . 1 . Used . | . . . . . . . . . . . . . . . . . . . . . . . . . . Hacking Detections 55 | . 5 3 4 2 5 3 . . . . 3 . 1 . 2 . . . . 4 3 1 7 8 4 Full Trace Events 13 | . 1 . 2 1 . 1 . . . . 1 . 1 . . . . . . . . 1 2 . 3 Feedback Events 2 | . . . . . . . . . . . 1 . . . . . . . . . . . 1 . . Corruption 2 | . . . . . . . . . . . 1 . . . . . . . . . . . 1 . . Feedback Blocked . | . . . . . . . . . . . . . . . . . . . . . . . . . . Robot Schematics Acquired 6 | . . . . . . . . . 6 . . . . . . . . . . . . . . . . Robots Built . | . . . . . . . . . . . . . . . . . . . . . . . . . . Authchips . | . . . . . . . . . . . . . . . . . . . . . . . . . . Time . | . . . . . . . . . . . . . . . . . . . . . . . . . . Total Robot Build Rating . | . . . . . . . . . . . . . . . . . . . . . . . . . . Part Schematics Acquired 22 | . . . . . . . . . 12 . . . . . . . . . . . . . 8 2 . Parts Built 2 | . . . . . . . . . . . 2 . . . . . . . . . . . . . . Authchips . | . . . . . . . . . . . . . . . . . . . . . . . . . . Time 117 | . . . . . . . . . . . 117 . . . . . . . . . . . . . . Total Part Build Rating 14 | . . . . . . . . . . . 14 . . . . . . . . . . . . . . Part Studies Acquired 3 | . . . 2 . . . . . . . . . . . . . . . . . . . 1 . . Parts Repaired 4 | . 1 . 1 . . . . . . . 1 . . . 1 . . . . . . . . . . Time 152 | . 26 . 26 . . . . . . . 44 . . . 56 . . . . . . . . . . Parts Recycled . | . . . . . . . . . . . . . . . . . . . . . . . . . . Recycled Matter . | . . . . . . . . . . . . . . . . . . . . . . . . . . Retrieved Matter . | . . . . . . . . . . . . . . . . . . . . . . . . . . Retrieved Components . | . . . . . . . . . . . . . . . . . . . . . . . . . . Parts Scanalyzed . | . . . . . . . . . . . . . . . . . . . . . . . . . . Part Schematics Acquired . | . . . . . . . . . . . . . . . . . . . . . . . . . . Parts Damaged . | . . . . . . . . . . . . . . . . . . . . . . . . . . Bothacking | -11 -10 -9 -8 -8 -8 -7 -7 -7 -7 -6 -6 -6 -5 -5 -4 -4 -4 -4 -3 -3 -3 -2 -2 -2 -1 ------------ Run | Yrd Mat Mat Mat Gar Mat Fac Low Low Dat Pro Fac Gar Fac DSF Fac Upp Upp War Pro Res Tes Res Qua Sec Acc Used RIF Installer . | . . . . . . . . . . . . . . . . . . . . . . . . . . Robots Hacked . | . . . . . . . . . . . . . . . . . . . . . . . . . . Non-combat . | . . . . . . . . . . . . . . . . . . . . . . . . . . Combat . | . . . . . . . . . . . . . . . . . . . . . . . . . . Robot Hacks Applied . | . . . . . . . . . . . . . . . . . . . . . . . . . . Relay Couplers Released 31 | . . . . 23 . . . . . . . 5 . . . . . . . . . 1 2 . . Machine Destruction 31 | . . . . 23 . . . . . . . 5 . . . . . . . . . 1 2 . . Fabnet Peak Effective % . | . . . . . . . . . . . . . . . . . . . . . . . . . . Robots Rewired 12 | . . . . 8 . . . . . . . 3 . . . 1 . . . . . . . . . Allies Hacked 3 | . . . . . . . . . . . 1 . . . . . . . . 1 . . . 1 . Hacks Repelled . | . . . . . . . . . . . . . . . . . . . . . . . . . . Allies | -11 -10 -9 -8 -8 -8 -7 -7 -7 -7 -6 -6 -6 -5 -5 -4 -4 -4 -4 -3 -3 -3 -2 -2 -2 -1 -------- Run | Yrd Mat Mat Mat Gar Mat Fac Low Low Dat Pro Fac Gar Fac DSF Fac Upp Upp War Pro Res Tes Res Qua Sec Acc Total Allies 40 | . . . . 10 . 1 . . . . 4 3 . . 1 2 . . . 1 2 5 1 7 3 Largest Group 6 | . . . . 6 6 1 1 . . . 4 3 . . 1 2 1 . . 1 1 5 1 4 3 Highest-Rated Group 356 | . . . . 84 84 85 85 . . . 84 96 . . 110 230 47 . . 120 119 224 137 356 288 Highest-Rated Ally 183 | . . . . 39 14 85 85 . . . 21 32 . . 110 183 47 . . 120 119 111 137 89 99 Initial Warlord ECA Mod 20 | . . . . . 13 12 12 12 12 11 11 11 11 11 20 20 20 20 19 19 19 18 18 18 17 Total Orders 37 | . . . . 2 . . . . . . . 2 . . . . . . . . 6 2 25 . . STAY 15 | . . . . 1 . . . . . . . 1 . . . . . . . . 3 1 9 . . FOLLOW 14 | . . . . 1 . . . . . . . 1 . . . . . . . . 3 1 8 . . EXPLORE 4 | . . . . . . . . . . . . . . . . . . . . . . . 4 . . RETURN 4 | . . . . . . . . . . . . . . . . . . . . . . . 4 . . Ally Attacks 351 | . . . . 9 5 4 . . . . 21 19 . . 14 15 3 . . 16 32 68 25 92 28 Total Damage 10579 | . . . . 215 . 212 . . . . 510 674 . . 690 819 62 . . 779 1638 1623 1103 1466 788 Kills 64 | . . . . 5 . 3 . . . . 1 6 . . 6 4 . . . 9 5 3 8 10 4 Allies Corrupted 1 | . . . . . . . . . . . . . . . . . . . . 1 . . . . . Allies Melted 3 | . . . . . . . . . . . . . . . . . . . . . 1 1 1 . . X0-1V1 Amusement Gains 478 | . 25 . 5 60 . 10 . . . . 36 60 . . . . . 40 . 55 20 25 50 36 56 Good Acts 150 | . 2 2 3 15 2 2 3 1 . 1 5 3 . 4 3 10 6 4 1 11 18 11 18 11 14 Bad Acts 110 | . . 5 9 11 3 . . . . . 9 3 . . 4 1 2 2 3 9 10 1 14 14 10 Intel | -11 -10 -9 -8 -8 -8 -7 -7 -7 -7 -6 -6 -6 -5 -5 -4 -4 -4 -4 -3 -3 -3 -2 -2 -2 -1 ------- Run | Yrd Mat Mat Mat Gar Mat Fac Low Low Dat Pro Fac Gar Fac DSF Fac Upp Upp War Pro Res Tes Res Qua Sec Acc Active Infowar (turns) 16873 | 32 3182 848 748 59 29 395 . . . . 765 2 15 62 595 914 529 529 437 785 517 2218 1118 1535 1559 Optics 1978 | . . . . . . . . . . . . . . . 6 914 529 529 . . . . . . . Terrain 9229 | . . . . . . . . . . . 765 2 15 62 501 582 . 225 437 680 517 2218 1118 640 1467 Structural 520 | . . . 520 . . . . . . . . . . . . . . . . . . . . . . Seismic 7505 | 32 3182 848 748 59 29 395 . . . . . . . . . . . . . . . . . 895 1317 Machine Analysis 273 | . . . . . . . . . . . . . . . 273 . . . . . . . . . . Cloaking 1614 | . . . . . . . . . . . . . . . . . . 1 . 273 . . . . 1340 Robot Analysis Total . | . . . . . . . . . . . . . . . . . . . . . . . . . . Derelict Logs Recovered 7 | . . . . . . . . . . 2 . . . . . 3 2 . . . . . . . . Drone Launches 5 | . . . . . . . . . . . . . . . . . . . . . . . 5 . . Drone Recoveries 3 | . . . . . . . . . . . . . . . . . . . . . . . 3 . . Exploration | -11 -10 -9 -8 -8 -8 -7 -7 -7 -7 -6 -6 -6 -5 -5 -4 -4 -4 -4 -3 -3 -3 -2 -2 -2 -1 ------------- Run | Yrd Mat Mat Mat Gar Mat Fac Low Low Dat Pro Fac Gar Fac DSF Fac Upp Upp War Pro Res Tes Res Qua Sec Acc Turns Passed 27972 | 128 3344 941 1180 1915 743 848 246 297 84 309 1418 1006 17 337 804 914 529 982 458 1196 1434 2323 2643 2292 1584 Spaces Moved 13391 | 51 1039 437 495 842 360 537 184 205 82 260 780 447 11 140 450 557 331 535 263 606 606 1097 1214 1011 851 Core 3 | 3 . . . . . . . . . . . . . . . . . . . . . . . . . Treads 3728 | 48 1039 437 449 842 360 61 . . . . 6 1 . . . . . . 3 . 446 . 22 14 . Legs . | . . . . . . . . . . . . . . . . . . . . . . . . . . Wheels 9660 | . . . 46 . . 476 184 205 82 260 774 446 11 140 450 557 331 535 260 606 160 1097 1192 997 851 Hover . | . . . . . . . . . . . . . . . . . . . . . . . . . . Flight . | . . . . . . . . . . . . . . . . . . . . . . . . . . Fastest Speed 50 | 50 160 160 115 152 155 115 115 110 95 110 110 100 130 130 130 145 145 145 145 115 124 130 146 146 125 Average Speed 147 | 153 160 160 157 157 157 120 115 113 96 110 118 123 130 130 136 145 145 149 146 135 146 177 168 154 133 Slowest Speed 295 | 160 160 160 160 160 240 160 115 115 110 110 160 160 130 130 145 145 145 160 250 190 240 210 295 220 155 Overloaded Moves . | . . . . . . . . . . . . . . . . . . . . . . . . . . Propulsion Burnouts . | . . . . . . . . . . . . . . . . . . . . . . . . . . Robots Hopped . | . . . . . . . . . . . . . . . . . . . . . . . . . . Potential Cave-ins 28 | . . . . . . . . . . . . . . . . . . . . . . 2 . 20 6 Cave-ins Triggered 2 | . . . . . . . . . . . . . . . . . . . . . . . . 2 . Teleports 4 | . . . . . . . . . . . . . . . . . . . . . . . . 3 1 Exploration Rate (%) 48 | 4 97 42 40 82 32 14 43 34 69 48 21 36 . 80 11 80 61 77 47 21 69 40 92 63 21 Regions Visited 25 Branch Regions 11 Pre-discovered Areas 6 | . 1 . . . . . 1 . 1 . . . . . . 3 . . . . . . . . . Known Exits Taken 8 | . . 1 1 . . . . . . . 1 . 1 . 1 . . . . 1 1 . . 1 . Unknown Exits Taken 14 | 1 1 . . . 1 1 1 1 1 1 . . . . . 1 1 1 1 . . 1 1 . . Scrap Searched 8 | . . . . . . . . . . 3 . . . . . 3 . . 2 . . . . . . Spaces Dug 121 | . . 2 2 . 1 10 . . . . 26 1 . 6 6 3 . . 3 3 6 9 2 34 7 Terrain Destroyed 1219 | . 190 2 2 222 10 10 . 20 . 1 30 23 . 34 59 17 7 75 17 13 85 132 24 112 134 Melee 37 | . . 2 2 . 1 10 . . . . 18 1 . . . . . . . 3 . . . . . Projectile 267 | . . . . 5 9 . . . . . 12 3 . 10 14 17 7 14 17 10 43 23 2 62 19 AOE 910 | . 190 . . 217 . . . 20 . 1 . 19 . 24 45 . . 61 . . 42 109 22 50 110 Terrain Rammed . | . . . . . . . . . . . . . . . . . . . . . . . . . . Walls Destroyed . | . . . . . . . . . . . . . . . . . . . . . . . . . . Machines Disabled . | . . . . . . . . . . . . . . . . . . . . . . . . . . Actions | -11 -10 -9 -8 -8 -8 -7 -7 -7 -7 -6 -6 -6 -5 -5 -4 -4 -4 -4 -3 -3 -3 -2 -2 -2 -1 --------- Run | Yrd Mat Mat Mat Gar Mat Fac Low Low Dat Pro Fac Gar Fac DSF Fac Upp Upp War Pro Res Tes Res Qua Sec Acc Total 19486 | 74 2556 561 765 1210 466 676 199 247 87 279 1104 748 13 244 568 635 363 681 307 899 997 1379 1745 1531 1152 Wait 3137 | . 1384 37 117 118 33 89 3 28 . 9 156 41 . 25 19 19 18 74 12 115 152 54 318 228 88 Move 13366 | 50 1038 436 495 841 359 536 183 204 81 259 779 446 10 139 449 556 330 534 262 605 605 1096 1213 1010 850 Hop . | . . . . . . . . . . . . . . . . . . . . . . . . . . Pick Up 290 | 4 10 5 22 5 6 5 1 . . 1 8 8 . 9 7 7 1 12 4 19 28 46 38 27 17 Fast Attach 235 | 7 3 3 8 6 9 . . 1 3 3 17 23 . 4 15 . 1 10 3 29 20 23 21 15 11 Attach 159 | . . 3 7 9 1 3 1 . . . 9 11 2 4 8 4 1 5 4 10 16 6 3 27 25 Detach 100 | . 1 1 3 2 . . . 1 . 1 9 7 . 3 8 . . 4 . 12 13 10 5 11 9 Swap 274 | . 19 9 18 22 10 4 2 . . . 8 19 1 10 17 2 1 6 2 17 20 17 20 24 26 Drop 370 | . 2 6 30 7 13 6 . . 3 4 20 17 . 11 13 8 2 13 2 38 37 49 56 19 14 Fire 1147 | 13 99 59 63 107 33 16 4 9 . 2 38 26 . 31 32 17 9 23 18 43 102 73 71 148 111 Melee 182 | . . 2 2 14 1 17 5 1 . . 60 50 . . . . . . . 10 . 4 . 16 . Ram 1 | . . . . . . . . . . . . . . . . . . . . . . . . 1 . Kick . | . . . . . . . . . . . . . . . . . . . . . . . . . . Crush 10 | . . . . 3 1 . . . . . . . . . . . . . . 1 1 1 . 2 1 Escape Stasis 41 | . . . . . . . . . . . . 30 . 8 . . . . . . 3 . . . . Rewire 171 | . . . . 76 . . . . . . . 70 . . . 22 . . . . . . . 3 . Trap 3 | . . . . . . . . 3 . . . . . . . . . . . . . . . . . Miscellaneous . | . . . . . . . . . . . . . . . . . . . . . . . . . . Route ------- -11/Scrapyard -10/Materials (discovered 5 exits: *Mat x3 / *Min / *Sub) -9/Materials (discovered 4 exits: *Mat x3 / Min) -8/Materials (discovered 2 exits: *Fac / Gar) -8/Garrison (discovered 3 exits: *Mat x3) -8/Materials -7/Factory (discovered 3 exits: Sto / [*Low] / Gar) -7/Lower Caves -7/Lower Caves -7/Data Miner -6/Proximity Caves -6/Factory (discovered 2 exits: [*Low] / Gar) -6/Garrison -5/Factory -5/DSF -4/Factory (discovered 3 exits: *Upp x2 / Arm) -4/Upper Caves -4/Upper Caves (discovered 2 exits: *Res / *War) -4/Warlord -3/Proximity Caves -3/Research (discovered 3 exits: Res / *Tes x2) -3/Testing -2/Research (discovered 3 exits: *Acc x2 / *Qua) -2/Quarantine (discovered 3 exits: *Acc / *Sec / *Frg) -2/Section 7 -1/Access (discovered 2 exits: [*Sur] / Com) To Epsilon Eridani History --------- Turn | Location | Event 6 | -11/Scrapyard | Discovered new exit (range 15) 129 | -11/Scrapyard | Entered Materials 316 | -10/Materials | Build established: Mutant 363 | -10/Materials | Discovered new exit (range 14) 435 | -10/Materials | Discovered new exit (range 9) 466 | -10/Materials | Discovered new exit (range 14) 491 | -10/Materials | Identified exit to Mines 717 | -10/Materials | Discovered new exit (range 16) 772 | -10/Materials | Repaired Lgt. Treads 941 | -10/Materials | Identified exit to Subcaves 941 | -10/Materials | Learned location of 1 exit from Materials 1016 | -10/Materials | Learned location of Mines (-9) 1079 | -10/Materials | Learned location of 3 exits from Materials 1178 | -10/Materials | Learned Storage emergency access door positions 1213 | -10/Materials | Learned 4 Recycling zone layouts 1273 | -10/Materials | Learned 4 Subcaves zone layouts 1372 | -10/Materials | Learned Storage emergency access door positions 3311 | -10/Materials | Prayed at D.C.S.S. Altar Unit 3366 | -10/Materials | Inventory capacity permanently improved by X0-1V1 (+1; -100 max core) 3473 | -10/Materials | Entered another Materials area 3473 | -9/Materials | Evolved 2 slots: Propulsion x1, Utility x1 3474 | -9/Materials | Identified exit to Materials 3474 | -9/Materials | Identified exit to Mines 3526 | -9/Materials | X0-1V1 vaporized surrounding terrain (radius 15) 3956 | -9/Materials | X0-1V1 sent you into danger 4414 | -9/Materials | Entered another Materials area 4414 | -8/Materials | Evolved 2 slots: Utility x1, Weapon x1 4596 | -8/Materials | Melee accuracy permanently improved by X0-1V1 (+7%; -70 max core) 4613 | -8/Materials | X0-1V1 redirected Transport squads to designated parking area 4704 | -8/Materials | Build established: Scavenger-Skirmisher 4753 | -8/Materials | Discovered new exit (range 9) 4917 | -8/Materials | Lost 3 parts (2n1w) 5029 | -8/Materials | Garrison activated, responded to threat 5176 | -8/Materials | X0-1V1 sent you into danger 5212 | -8/Materials | Destroyed 9 combat bots 5317 | -8/Materials | Repaired Lgt. Armor Plating 5471 | -8/Materials | Build established: Tank 5594 | -8/Materials | Identified exit to Garrison 5594 | -8/Materials | Entered Garrison 5646 | -8/Garrison | Triggered checkpoint 5874 | -8/Garrison | Core integrity restored by X0-1V1 (+57) 5893 | -8/Garrison | Phase Generator disabled 5972 | -8/Garrison | Triggered checkpoint 6093 | -8/Garrison | X0-1V1 rewrote BO-O9Y(h) IFF filter 6109 | -8/Garrison | Discovered new exit (range 5) 6183 | -8/Garrison | Garrison Relay disabled 6227 | -8/Garrison | X0-1V1 sent hostile G-34 Mercenary (x4) 6350 | -8/Garrison | Garrison Relay disabled 6354 | -8/Garrison | Garrison Relay disabled 6357 | -8/Garrison | Garrison Relay disabled 6360 | -8/Garrison | Garrison Relay disabled 6431 | -8/Garrison | Core integrity restored by X0-1V1 (+83) 6536 | -8/Garrison | Garrison Relay disabled 6573 | -8/Garrison | Discovered new exit (range 13) 6620 | -8/Garrison | X0-1V1 sent hostile G-34 Mercenary (x4) 6666 | -8/Garrison | Lost 3 parts (1p1n1u) 6693 | -8/Garrison | Ranged accuracy permanently improved by X0-1V1 (+7%; -70 max core) 6899 | -8/Garrison | Garrison Relay disabled 7067 | -8/Garrison | Triggered checkpoint 7076 | -8/Garrison | X0-1V1 sent hostile B-36 Bruiser (x1) 7126 | -8/Garrison | Triggered checkpoint 7232 | -8/Garrison | X0-1V1 sent hostile S-10 Pest (x3) 7240 | -8/Garrison | X0-1V1 sent allied B-36 Bruiser (x2) 7259 | -8/Garrison | Destroyed 8 combat bots 7346 | -8/Garrison | Build established: Gunner 7434 | -8/Garrison | X0-1V1 activates XOMVISION 7443 | -8/Garrison | Core integrity restored by X0-1V1 (+49) 7464 | -8/Garrison | Triggered checkpoint 7485 | -8/Garrison | Discovered new exit (range 15) 7509 | -8/Garrison | Entered Materials 7509 | -8/Materials | Accompanied by 6 allies 7587 | -8/Materials | Lost 6 allies 7747 | -8/Materials | Discovered new exit (range 4) 7909 | -8/Materials | First assault squad dispatched 7967 | -8/Materials | X0-1V1 redirected Transport squads to designated parking area 7995 | -8/Materials | Core integrity fell below 50% 8116 | -8/Materials | Core integrity restored by X0-1V1 (+71) 8201 | -8/Materials | X0-1V1 announced a LAN party 8252 | -8/Materials | Entered Factory 8252 | -7/Factory | Evolved 2 slots: Propulsion x1, Weapon x1 8323 | -7/Factory | Identified exit to Garrison 8560 | -7/Factory | Discovered new exit (range 6) 8892 | -7/Factory | Identified exit to Storage 8892 | -7/Factory | X0-1V1 revealed exit location to -7/Storage 8954 | -7/Factory | X0-1V1 sent allied B-75 Beast (x1) 9100 | -7/Factory | Entered Lower Caves 9100 | -7/Lower Caves | Accompanied by 1 ally 9106 | -7/Lower Caves | Met a Warlord Commander 9107 | -7/Lower Caves | Learned location of Warlord (-4) 9108 | -7/Lower Caves | Warlord Commander delivered Encrypted Comm Array 9112 | -7/Lower Caves | Found Encrypted Comm Array 9201 | -7/Lower Caves | X0-1V1 activates XOMVISION 9328 | -7/Lower Caves | X0-1V1 whisked you away to safety 9341 | -7/Lower Caves | Discovered new exit (range 5) 9346 | -7/Lower Caves | Entered another Lower Caves area 9353 | -7/Lower Caves | Encountered a Warlord checkpoint 9498 | -7/Lower Caves | Ambushed by wild Derelicts 9637 | -7/Lower Caves | Discovered new exit (range 6) 9643 | -7/Lower Caves | Entered Data Miner 9643 | -7/Data Miner | Discovered new exit (range 6) 9664 | -7/Data Miner | Met Data Miner 9684 | -7/Data Miner | Learned location of Section 7 (-2) 9684 | -7/Data Miner | Acquired the access code to Warlord's prototype stash 9699 | -7/Data Miner | Received God Mode back door access code from Data Miner 9727 | -7/Data Miner | Entered Proximity Caves 9765 | -6/Proximity Caves | X0-1V1 activates XOMVISION 9950 | -6/Proximity Caves | Learned Factory terminal intel 9962 | -6/Proximity Caves | Learned Factory security intel 10033 | -6/Proximity Caves | Discovered new exit (range 3) 10036 | -6/Proximity Caves | Entered Factory 10036 | -6/Factory | Evolved 2 slots: Power x1, Utility x1 10038 | -6/Factory | Loaded intel: 28 terminal locations 10089 | -6/Factory | Repaired Arm. Huge Wheel 10283 | -6/Factory | Discovered new exit (range 12) 10299 | -6/Factory | X0-1V1 sent hostile P-60 Hacker (x2) 10310 | -6/Factory | X0-1V1 sent allied H-55 Commando (x4) 10430 | -6/Factory | Lost 4 allies 10542 | -6/Factory | X0-1V1 redirected Transport squads to designated parking area 10611 | -6/Factory | Build established: Scavenger-Tank 10623 | -6/Factory | Incoming investigation squad redirected 10907 | -6/Factory | X0-1V1 sent you to a vault 10918 | -6/Factory | Found Prototype Slashing Weapon 10918 | -6/Factory | Identified Scimitar of Distortion 10962 | -6/Factory | Fabricated Hardcell Cannon? 10975 | -6/Factory | System corruption reached 10% 11086 | -6/Factory | Incoming investigation squad redirected 11086 | -6/Factory | X0-1V1 blocked Data Miner access to 0b10 dispatch routers 11288 | -6/Factory | Build established: Tank 11450 | -6/Factory | Identified exit to Garrison 11454 | -6/Factory | Entered Garrison 11516 | -6/Garrison | Triggered checkpoint 11533 | -6/Garrison | Spotted B-75 Beast 11553 | -6/Garrison | Destroyed B-75 Beast 11580 | -6/Garrison | Lost 4 parts (1p2u1w) 11702 | -6/Garrison | Triggered checkpoint 11795 | -6/Garrison | Garrison Relay disabled 11862 | -6/Garrison | Destroyed 7 combat bots 11895 | -6/Garrison | Lost 3 parts (1p1u1w) 11916 | -6/Garrison | Core integrity fell below 50% 11978 | -6/Garrison | Lost 6 parts (1p2n1u2w) 12179 | -6/Garrison | Triggered checkpoint 12180 | -6/Garrison | Core integrity fell below 20% 12229 | -6/Garrison | Triggered checkpoint 12278 | -6/Garrison | Build established: Scavenger-Gunner 12428 | -6/Garrison | Discovered new exit (range 10) 12430 | -6/Garrison | Spotted B-90 Cyclops 12460 | -6/Garrison | Entered Factory 12460 | -5/Factory | Evolved 2 slots: Propulsion x1, Utility x1 12477 | -5/Factory | Identified exit to DSF 12477 | -5/Factory | Entered DSF 12563 | -5/DSF | Additional patrols routed to DSF 12575 | -5/DSF | X0-1V1 activates XOMVISION 12591 | -5/DSF | Identified exit to Factory 12591 | -5/DSF | X0-1V1 revealed exit location to -4/Factory 12746 | -5/DSF | Sterilization system engaged 12765 | -5/DSF | Destroyed 7 combat bots 12766 | -5/DSF | Ambient heat levels rising (+10) 12781 | -5/DSF | Ambient heat levels rising (+10) 12796 | -5/DSF | Ambient heat levels rising (+10) 12798 | -5/DSF | Found Prototype Hackware 12798 | -5/DSF | Identified Exp. System Shield 12811 | -5/DSF | Ambient heat levels rising (+10) 12814 | -5/DSF | Entered Factory 12814 | -4/Factory | Evolved 2 slots: Power x1, Utility x1 12842 | -4/Factory | X0-1V1 activates XOMVISION 12873 | -4/Factory | Build established: Scavenger-Tank 13027 | -4/Factory | Spotted B-86 Titan 13027 | -4/Factory | X0-1V1 sent you into danger 13051 | -4/Factory | Destroyed B-86 Titan 13207 | -4/Factory | Discovered new exit (range 4) 13260 | -4/Factory | Repaired Adv. Shield Generator? 13288 | -4/Factory | Spotted B-86 Titan 13354 | -4/Factory | X0-1V1 sent hostile H-77 Assassin (x3) 13372 | -4/Factory | X0-1V1 sent allied Lightning (x1) 13430 | -4/Factory | X0-1V1 mutated your Weapon slot to Utility slot 13499 | -4/Factory | Identified exit to Upper Caves 13499 | -4/Factory | Identified exit to Armory 13564 | -4/Factory | First assault squad dispatched 13618 | -4/Factory | Entered Upper Caves 13686 | -4/Upper Caves | Entered an active Warlord outpost 13721 | -4/Upper Caves | Learned 8 Factory zone layouts 13721 | -4/Upper Caves | Learned Research trap positions 13808 | -4/Upper Caves | X0-1V1 activates XOMVISION 13841 | -4/Upper Caves | Learned location of Testing (-3) 13889 | -4/Upper Caves | Build established: Scavenger-Skirmisher 14206 | -4/Upper Caves | Learned location of Quarantine (-2) 14318 | -4/Upper Caves | X0-1V1 sent allied H-81 Overseer (x1) 14411 | -4/Upper Caves | Attracted the attention of an 0b10 outpost 14507 | -4/Upper Caves | Discovered new exit (range 10) 14532 | -4/Upper Caves | Entered another Upper Caves area 14532 | -4/Upper Caves | Accompanied by 1 ally 14534 | -4/Upper Caves | Discovered new exit (range 13) 14646 | -4/Upper Caves | Build established: Gunner 14896 | -4/Upper Caves | Learned location of 1 exit from Research 14944 | -4/Upper Caves | Learned Research security intel 15011 | -4/Upper Caves | X0-1V1 activates XOMVISION 15050 | -4/Upper Caves | Discovered new exit (range 7) 15061 | -4/Upper Caves | Entered Warlord 15105 | -4/Warlord | Discovered new exit (range 9) 15420 | -4/Warlord | Met Warlord 15445 | -4/Warlord | Warlord's base attacked by MAIN.C 15486 | -4/Warlord | Opened Warlord's prototype stash 15495 | -4/Warlord | Found Prototype Reactor 15495 | -4/Warlord | Identified Vortex Chain Reactor 15504 | -4/Warlord | Found Prototype Processor 15504 | -4/Warlord | Identified Exp. Target Analyzer 15518 | -4/Warlord | Found Prototype Device 15518 | -4/Warlord | Identified Exp. Cloaking Device 15568 | -4/Warlord | Found Prototype Energy Cannon 15568 | -4/Warlord | Identified Vortex Driver 15576 | -4/Warlord | Found Prototype Energy Gun 15576 | -4/Warlord | Identified Vortex Shotgun 15580 | -4/Warlord | Found Vortex Shotgun 15592 | -4/Warlord | Found Vortex Driver 15795 | -4/Warlord | Warlord forces counterattacked 15854 | -4/Warlord | Spotted Striker 15854 | -4/Warlord | Spotted Executioner 15862 | -4/Warlord | Destroyed Executioner 15919 | -4/Warlord | Spotted Executioner 15922 | -4/Warlord | Lost 10 allies 15938 | -4/Warlord | Spotted Striker 15945 | -4/Warlord | Destroyed Striker 15975 | -4/Warlord | P-70 Sage assimilated allied VC-NUL(g) 15984 | -4/Warlord | P-80 Master assimilated allied 00-ZMA(M) 15987 | -4/Warlord | Lost 8 allies 15996 | -4/Warlord | P-80 Master assimilated allied H2-HUS(M) 16034 | -4/Warlord | Destroyed 10 combat bots 16041 | -4/Warlord | Lost 7 parts (1n4u2w) 16043 | -4/Warlord | Entered Proximity Caves 16163 | -3/Proximity Caves | Spotter reported a threat 16181 | -3/Proximity Caves | Spotter reported a threat 16302 | -3/Proximity Caves | Core integrity restored by X0-1V1 (+227) 16423 | -3/Proximity Caves | X0-1V1 sent hostile Thug (x4) 16454 | -3/Proximity Caves | Attracted the attention of an 0b10 checkpoint 16476 | -3/Proximity Caves | Discovered new exit (range 10) 16498 | -3/Proximity Caves | Lost 3 parts (1n1u1w) 16501 | -3/Proximity Caves | Entered Research 16501 | -3/Research | Evolved 2 slots: Propulsion x1, Utility x1 16502 | -3/Research | Identified exit to Testing 16503 | -3/Research | Loaded intel: 74 trap records 16637 | -3/Research | X0-1V1 activates XOMVISION 16742 | -3/Research | Build established: Scavenger-Gunner 16743 | -3/Research | Weapon slot count temporarily expanded by X0-1V1 (+4) 16751 | -3/Research | Search patrols dispatched 16844 | -3/Research | System corruption reached 10% 16871 | -3/Research | X0-1V1 sent allied Immortal (x1) 16893 | -3/Research | Destroyed 7 combat bots 16894 | -3/Research | Lost 5 parts (1p4w) 16919 | -3/Research | X0-1V1 foreshadows a heat wave 16949 | -3/Research | X0-1V1 sent you to a vault 16958 | -3/Research | Identified exit to Research 16958 | -3/Research | X0-1V1 revealed exit location to -2/Research 16962 | -3/Research | Found Lrg. Botcube 16965 | -3/Research | Found Prototype Device 16965 | -3/Research | Identified Adv. Particle Accelerator 16972 | -3/Research | Found Prototype Device 16972 | -3/Research | Identified Exp. Phase Shifter 16976 | -3/Research | Found Prototype Device 16976 | -3/Research | Identified Thermal Barrier 16981 | -3/Research | Found Prototype Device 16981 | -3/Research | Identified Imp. Particle Accelerator 16999 | -3/Research | Found Prototype Ballistic Gun 16999 | -3/Research | Identified Multirail 17002 | -3/Research | Found Prototype Hackware 17002 | -3/Research | Identified System Mapper 17009 | -3/Research | Found Prototype Reactor 17009 | -3/Research | Identified Singularity Reactor 17013 | -3/Research | Found Prototype Device 17013 | -3/Research | Identified System Purifier 17062 | -3/Research | Build established: Scavenger-Executioner 17109 | -3/Research | Ambient heat levels rising (+10) 17158 | -3/Research | Cargo convoy interrupted 17160 | -3/Research | Destroyed 7 combat bots 17315 | -3/Research | Spotted B-86 Titan 17335 | -3/Research | Ambient heat levels rising (+10) 17504 | -3/Research | Ambient heat levels falling (-10) 17594 | -3/Research | Garrison activated, responded to threat 17637 | -3/Research | X0-1V1 revealed exit location to -3/Testing 17639 | -3/Research | Ambient heat levels falling (-10) 17697 | -3/Research | Entered Testing 17747 | -3/Testing | X0-1V1 announced a LAN party 17810 | -3/Testing | Build established: Hacker-Gunner 17915 | -3/Testing | Spotted PH-ZYW1DFRT9L 17944 | -3/Testing | Destroyed PH-ZYW1DFRT9L 18037 | -3/Testing | X0-1V1 sent you to a vault 18037 | -3/Testing | Found Prototype Device 18037 | -3/Testing | Identified Exp. Thermal Shield 18073 | -3/Testing | Found Alien Artifact 18076 | -3/Testing | Found Prototype Slashing Weapon 18091 | -3/Testing | Found Prototype Slashing Weapon 18106 | -3/Testing | Found Gamma Bomb Array 18107 | -3/Testing | X0-1V1 mutated your Propulsion slot to Power slot 18122 | -3/Testing | Found Prototype Slashing Weapon 18134 | -3/Testing | Lrg. Botcube activated 18149 | -3/Testing | X0-1V1 added 0b10 threat records associated with you (considerable) 18154 | -3/Testing | Lrg. Botcube completed mutation into legged form, armed with 4 melee weapons 18382 | -3/Testing | Found Prototype Protection 18382 | -3/Testing | Identified Centrium Heavy Armor Plating 18517 | -3/Testing | Found Lrg. Botcube 18518 | -3/Testing | Identified Hvy. Scimitar of Distortion 18579 | -3/Testing | Build established: Generator-Tank 18627 | -3/Testing | X0-1V1 activates XOMVISION 18638 | -3/Testing | X0-1V1 whisked you away to safety 18697 | -3/Testing | First assault squad dispatched 18726 | -3/Testing | Lrg. Botcube activated 18754 | -3/Testing | Lrg. Botcube completed mutation into hovering form, armed with 3 guns 18812 | -3/Testing | X0-1V1 redirected Transport squads to designated parking area 18903 | -3/Testing | X0-1V1 vaporized surrounding terrain (radius 16) 18962 | -3/Testing | Identified Terrabomb 18964 | -3/Testing | X0-1V1 activates XOMVISION 19032 | -3/Testing | Found Prototype Device 19032 | -3/Testing | Identified 2N-1CE's Frost Array 19100 | -3/Testing | Discovered exit to Research (range 8) 19131 | -3/Testing | Entered Research 19131 | -2/Research | Accompanied by 1 ally 19131 | -2/Research | Warlord forces began assault on 0b10 19131 | -2/Research | Evolved 2 slots: Propulsion x1, Utility x1 19156 | -2/Research | Distinguished unit "Railsplitters" dispatched to help 19156 | -2/Research | Distinguished unit "Death Star" dispatched to help 19241 | -2/Research | Research machine network offline 19428 | -2/Research | X0-1V1 sent you to a vault 19505 | -2/Research | Weapon slot count temporarily expanded by X0-1V1 (+3) 19505 | -2/Research | Found Prototype Launcher 19505 | -2/Research | Identified Hellfire Missile Launcher 19520 | -2/Research | Found Hellfire Missile Launcher 19523 | -2/Research | Found Hellfire Missile Launcher 19622 | -2/Research | Spotted Striker 19624 | -2/Research | Spotted Striker 19657 | -2/Research | Borebot progress halted 19732 | -2/Research | Spotted Executioner 19734 | -2/Research | Spotted Striker 19757 | -2/Research | Found Exp. Targeting Computer 19776 | -2/Research | Found Prototype Processor 19776 | -2/Research | Identified Exp. Core Analyzer 19819 | -2/Research | Spotted B-90 Cyclops 19953 | -2/Research | Spotted Striker 19953 | -2/Research | Spotted NH-3BK(L) 19957 | -2/Research | P-80 Master assimilated allied 0V-FQ7(S) 19958 | -2/Research | Borebot progress halted 19984 | -2/Research | Destroyed Striker 20002 | -2/Research | Lost 3 allies 20033 | -2/Research | Borebot progress halted 20058 | -2/Research | Spotted Striker 20058 | -2/Research | Spotted B-90 Cyclops 20058 | -2/Research | Destroyed Striker 20071 | -2/Research | Found Exp. Focal Shield 20135 | -2/Research | Lost 3 parts (2p1u) 20237 | -2/Research | Spotted Striker 20237 | -2/Research | Spotted Executioner 20248 | -2/Research | Destroyed Striker 20266 | -2/Research | Identified exit to Access 20266 | -2/Research | X0-1V1 revealed exit location to -1/Access 20313 | -2/Research | Found Lrg. Botcube 20581 | -2/Research | Lrg. Botcube activated 20615 | -2/Research | Lrg. Botcube completed mutation into wheeled form, armed with 4 special weapons 20626 | -2/Research | Spotted Striker 20629 | -2/Research | Spotted Striker 20636 | -2/Research | Given Cave Seal Controls access code 20646 | -2/Research | Destroyed Striker 20648 | -2/Research | Destroyed Striker 20808 | -2/Research | Discovered exit to Access (range 14) 20852 | -2/Research | Found Exp. Core Analyzer 21445 | -2/Research | Discovered new exit (range 4) 21454 | -2/Research | Entered Quarantine 21454 | -2/Quarantine | Accompanied by 1 ally 21552 | -2/Quarantine | Cryocooling Duct disabled 21553 | -2/Quarantine | X0-1V1 enhanced Transport squad support 21556 | -2/Quarantine | Cryocooling Duct disabled 21567 | -2/Quarantine | Ambient heat levels rising (+20) 21567 | -2/Quarantine | Non-combat units ordered to evacuate 21569 | -2/Quarantine | Destroyed 7 combat bots 21571 | -2/Quarantine | Ambient heat levels rising (+20) 21571 | -2/Quarantine | Combat units ordered to evacuate 21633 | -2/Quarantine | Lost 4 allies 21671 | -2/Quarantine | Quarantine Guard activated 21737 | -2/Quarantine | Found Alien Artifact 21783 | -2/Quarantine | Spotted Quarantine Guard 21794 | -2/Quarantine | Destroyed Quarantine Guard 21802 | -2/Quarantine | Cryocooling Duct disabled 21817 | -2/Quarantine | Ambient heat levels rising (+20) 21842 | -2/Quarantine | Spotted Quarantine Guard 21898 | -2/Quarantine | Destroyed Quarantine Guard 21906 | -2/Quarantine | Spotted Quarantine Guard 21933 | -2/Quarantine | Destroyed Quarantine Guard 22002 | -2/Quarantine | Murdered *GR-1LL 22002 | -2/Quarantine | Destroyed *GR-1LL 22100 | -2/Quarantine | Found Quantum Capacitor 22266 | -2/Quarantine | Found Hvy. Insulated Plating 22288 | -2/Quarantine | Lrg. Botcube activated 22318 | -2/Quarantine | Lrg. Botcube completed mutation into treaded form, armed with 2 cannons 22356 | -2/Quarantine | Spotted Quarantine Guard 22360 | -2/Quarantine | Destroyed Quarantine Guard 22404 | -2/Quarantine | Spotted Quarantine Guard 22417 | -2/Quarantine | Destroyed Quarantine Guard 22523 | -2/Quarantine | Found Alien Energy Cannon 22634 | -2/Quarantine | X0-1V1 downgraded hostiles (x2) 22668 | -2/Quarantine | Spotted Quarantine Guard 22682 | -2/Quarantine | Destroyed Quarantine Guard 22682 | -2/Quarantine | X0-1V1 sent hostile D-83 Annihilator (x1) 23028 | -2/Quarantine | Found Alien Artifact 23080 | -2/Quarantine | X0-1V1 sent you to a vault 23112 | -2/Quarantine | Found Adv. Powered Armor 23114 | -2/Quarantine | Found Hvy. Scimitar of Distortion 23123 | -2/Quarantine | Found Prototype Device 23123 | -2/Quarantine | Identified Exp. Shock Absorption System 23202 | -2/Quarantine | Found Chaos Jack 23315 | -2/Quarantine | Spotted Quarantine Guard 23322 | -2/Quarantine | Destroyed Quarantine Guard 23375 | -2/Quarantine | Spotted Quarantine Guard 23461 | -2/Quarantine | Spotted Quarantine Guard 23472 | -2/Quarantine | Allies destroyed Quarantine Guard 23580 | -2/Quarantine | Found Alien Artifact 23580 | -2/Quarantine | Identified Phase Armor 23616 | -2/Quarantine | Identified exit to Protoforge 23616 | -2/Quarantine | X0-1V1 revealed exit location to -2/Protoforge 23729 | -2/Quarantine | Discovered exit to Access (range 10) 23729 | -2/Quarantine | Spotted Quarantine Guard 23746 | -2/Quarantine | Destroyed Quarantine Guard 23788 | -2/Quarantine | Found Alien Slashing Weapon 23871 | -2/Quarantine | X0-1V1 activates XOMVISION 23910 | -2/Quarantine | Found Exp. Thermal Shield 23924 | -2/Quarantine | Found Transdimensional Reconstructor 23928 | -2/Quarantine | Spotted Fortress 24061 | -2/Quarantine | Spotted Quarantine Guard 24064 | -2/Quarantine | Spotted Quarantine Guard 24071 | -2/Quarantine | Destroyed Quarantine Guard 24074 | -2/Quarantine | Destroyed Quarantine Guard 24086 | -2/Quarantine | Discovered new exit (range 4) 24097 | -2/Quarantine | Entered Section 7 24106 | -2/Section 7 | Spotted B-90 Cyclops 24353 | -2/Section 7 | Found Alien Artifact 24562 | -2/Section 7 | Found Alien Artifact 24741 | -2/Section 7 | Crushed by falling debris 24764 | -2/Section 7 | Spotted S7 Guard 24785 | -2/Section 7 | Destroyed S7 Guard 24806 | -2/Section 7 | Found Corrupted Prototype Protection 24847 | -2/Section 7 | First assault squad dispatched 24850 | -2/Section 7 | System corruption reached 10% 24872 | -2/Section 7 | Used Terrabomb 24872 | -2/Section 7 | Spotted Alpha 7 24879 | -2/Section 7 | Found Alien Artifact 24885 | -2/Section 7 | Spotted Alpha 7 24915 | -2/Section 7 | Destroyed Alpha 7 24917 | -2/Section 7 | Identified Hvy. Regenerative Plating 25001 | -2/Section 7 | Found Corrupted Multirail 25005 | -2/Section 7 | System corruption reached 30% 25134 | -2/Section 7 | Destroyed Alpha 7 25157 | -2/Section 7 | Spotted B-99 Colossus 25175 | -2/Section 7 | Warped through subspace 25176 | -2/Section 7 | Core integrity fell below 50% 25207 | -2/Section 7 | Found Alien Artifact 25208 | -2/Section 7 | Identified LRC Storage 25208 | -2/Section 7 | Installed LRC Storage, increased inventory capacity (+2) 25216 | -2/Section 7 | Found LRC Storage 25216 | -2/Section 7 | Installed LRC Storage, increased inventory capacity (+2) 25283 | -2/Section 7 | Found Alien Artifact 25285 | -2/Section 7 | Found Alien Artifact 25288 | -2/Section 7 | Found Alien Artifact 25368 | -2/Section 7 | Found Alien Artifact 25404 | -2/Section 7 | Identified Core Cannon 25497 | -2/Section 7 | Crushed by falling debris 25508 | -2/Section 7 | Destroyed 7 combat bots 25547 | -2/Section 7 | Lost 4 parts (1p2u1w) 25638 | -2/Section 7 | Found Alien Reactor 25668 | -2/Section 7 | Found Transdimensional Reconstructor 25670 | -2/Section 7 | Found Transdimensional Reconstructor 25675 | -2/Section 7 | Found Alien Artifact 25692 | -2/Section 7 | Build established: Scavenger-Tank 25699 | -2/Section 7 | Spotted Executioner 25699 | -2/Section 7 | Spotted Executioner 25766 | -2/Section 7 | Identified Hpw. Transdimensional Reconstructor 25766 | -2/Section 7 | Warped through subspace 25769 | -2/Section 7 | Spotted Executioner 25769 | -2/Section 7 | Spotted Executioner 25771 | -2/Section 7 | Sensors blinded by X0-1V1 25775 | -2/Section 7 | X0-1V1 sent allied X-87 Electro (x4) 25779 | -2/Section 7 | Allies destroyed Executioner 25780 | -2/Section 7 | Allies destroyed Executioner 25792 | -2/Section 7 | Identified Matter Drive 25859 | -2/Section 7 | Spotted Striker 25859 | -2/Section 7 | Spotted Striker 25875 | -2/Section 7 | Allies destroyed Striker 25876 | -2/Section 7 | Allies destroyed Striker 26007 | -2/Section 7 | Warped through subspace 26021 | -2/Section 7 | X0-1V1 sent allied Cetus Guard (x2) 26188 | -2/Section 7 | Found Corrupted Multirail 26190 | -2/Section 7 | Found Corrupted Exp. Targeting Computer 26256 | -2/Section 7 | Core integrity restored by X0-1V1 (+326) 26344 | -2/Section 7 | Core integrity restored by X0-1V1 (+326) 26385 | -2/Section 7 | Identified Integrated Dissipator (x4) 26385 | -2/Section 7 | Installed Integrated Dissipator, increased core heat dissipation (+20) 26386 | -2/Section 7 | Installed Integrated Dissipator, increased core heat dissipation (+20) 26387 | -2/Section 7 | Installed Integrated Dissipator, increased core heat dissipation (+20) 26388 | -2/Section 7 | Installed Integrated Dissipator, increased core heat dissipation (+20) 26389 | -2/Section 7 | Entered Access 26389 | -1/Access | Evolved 2 slots: Utility x1, Weapon x1 26524 | -1/Access | Garrison activated, responded to threat 26526 | -1/Access | X0-1V1 sent you to a vault 26529 | -1/Access | Found Hvy. Scimitar of Distortion 26539 | -1/Access | Found Exp. Cloaking Device 26544 | -1/Access | Found Exp. Cloaking Device 26706 | -1/Access | X0-1V1 enhanced Transport squad support 26862 | -1/Access | X0-1V1 destroyed Energy Cycler 26862 | -1/Access | Energy Cycler disabled 26868 | -1/Access | Spotted B-99 Colossus 26889 | -1/Access | First assault squad dispatched 27073 | -1/Access | X0-1V1 redirected Transport squads to designated parking area 27093 | -1/Access | Garrison activated, responded to threat 27095 | -1/Access | Warped through subspace 27112 | -1/Access | Destroyed 9 combat bots 27317 | -1/Access | Spotted B-99 Colossus 27516 | -1/Access | X0-1V1 downgraded hostiles (x2) 27527 | -1/Access | X0-1V1 sent allied Striker (x3) 27534 | -1/Access | Weapon slot count temporarily expanded by X0-1V1 (+1) 27540 | -1/Access | Lost 3 parts (3u) 27577 | -1/Access | System corruption reached 10% 27589 | -1/Access | Lost 3 allies 27592 | -1/Access | Lost 3 parts (2n1u) 27608 | -1/Access | High security lockdown imminent 27615 | -1/Access | Identified exit to Command 27615 | -1/Access | X0-1V1 revealed exit location to -1/Command 27629 | -1/Access | Destroyed 13 combat bots 27688 | -1/Access | High security lockdown engaged 27816 | -1/Access | Destroyed 12 combat bots 27820 | -1/Access | Lost 4 parts (1p1u2w) 27928 | -1/Access | X0-1V1 vaporized surrounding terrain (radius 15) 27947 | -1/Access | Lost 4 parts (1p2u1w) 27959 | -1/Access | Discovered new exit (range 8) 27971 | -1/Access | Identified Integrity Redistributor (x3) 27971 | -1/Access | Used Integrity Redistributor, redistributed integrity from core (-457) 27972 | -1/Access | Core integrity fell below 50% 27972 | -1/Access | Identified Phase Redirector 27973 | *** | Escaped! Last Messages --------------- 27942_ The unstable cave ceiling collapses. 27942_ G-73 Enforcer destroyed. 27944_ The unstable cave ceiling collapses. 27945_ U-05 Engineer builds a Wall. 27946_ R-10 Processor collects Wheel+. 27948_ The unstable cave ceiling collapses. 27950_ U-05 Engineer builds a Wall. 27951_ R-10 Processor collects Wheel+. 27951_ K-01 Serf collects debris. 27955_ U-05 Engineer builds a Wall. 27958_ ALERT: Heavy assault forces dispatched. 27958_ K-01 Serf collects debris. 27959_ The Access Shell folds into the floor. 27959_ EXIT=FOUND 27968_ K-01 Serf cleans the Terminal. 27971_ Identified Integrity Redistributor. 27971_ Integrity redistributed from core (-457). 27972_ Identified Phase Redirector. [Achievement: 75k Club] [Achievement: Chaotic Teddy Bear] Map ----- +----------------------------------------------------+ | ##???????#### #? #?????????????????????? | | ############## #? #??? ?????????????????? | | ## # #?????????????????????? | | ] ## " # #??? ?????????????????? | | ][ ## """ " #?????????????????????? | | [ ## """ # #?????????????????????? | | ## " % + +?????????????????????? | | #" # #?????????????????????? | | #" % # #?????????????????????? | | #""###""##" #?????????????????????? | | ! ####??## #??????????????????? | | ##+#####+##+##?#????? #??????????????????? | | !% #??# #???????????? #??????????????????? | | #??# ##????#????? ?? #??????????????????? | | #?## #??????##?? ??? #??????????????????? | | ##?# #??#??#????????? #??????????????????? | | # "## # ## ????#???????? #??????????????????? | | # """""#"" ###???##??????""""#??????? ??????????? | | " " " " ###????"???"????????????? ?????????? | | " " " " ##??????????????? ???????????????? | | " " " " ###""""""""""#??????????????????? | | " " " " ## #??????????????????? | | " " " ; # #??????????????????? | | " ; ;; # #??????????????????? | | + ; ; "" #??????????????????? | | ; ; ; "@ #??????????????????? | | ; ; ; #??#???????????????? | | # ; ; ; #??????????????????? | | # # " ; ; #?????????? ???????? | | """" ; ;; #??????????????????? | | % #"""" ; ; #?????????????????? | | ; ;;"" ##?????????????????? | | ; ;"" #??????????????????? | | ] """"""" ; ;"" #??????????????????? | | """"" " ; "T #??????????????????? | | " " """ #??????????????????? | | """""""""""% " """ #??????????????????? | | "######"" ##?????????????????? | | k ????? ????????????? | | ?????????????????? | | """""""+""""""+""""##############????????????????? | | " " "##????????#????????????????????? | | " " ##?##?????#?????????????????????? | | " " #????#??????????????????????????? | | " " ""##??????????????? ??????????????? | | ??" " ""#???#???????????????????????????? | | ?## # S"#?##????????????????????????????? | | ??# # """#???????????????????????????????? | | ??# # """#????????#??????????????????????? | | ??# # """##??????????????????????????????? | +----------------------------------------------------+ Best States ------------- Heat Dissipation 180 Coolant Potential 100 Energy Generation 99 Energy Capacity 2355 Matter Stores 865 Matter Capacity 1000 Sight Range 22 Terrain Scan Range 20 Terrain Scan Density 10 Cloak Strength 6 Armor Coverage 1650 Resistance: KI 48 Resistance: TH 96 Point Defense Rating 160 Weapon Cycling 25 Melee Speed Boost 20 Phase Shifting 5 Evasion (%) 45 Targeting Accuracy 12 Melee Accuracy 8 Target Analysis 10 Core Analysis 8 Recoil Reduction 4 Matter Filtering 30 Particle Charging 50 Offensive Hacking 20 Defensive Hacking 16 Item Schematics ----------------- Combat Drone Bay | -7/Data Miner | Free Lgt. Regenerative Plating | -7/Data Miner | Free Cld. Cesium-ion Thruster | -7/Data Miner | Free Exp. Targeting Computer | -7/Data Miner | Free Shock Maul | -7/Data Miner | Free Linear Gravjet | -7/Data Miner | Free Imp. Weapon Cycler | -7/Data Miner | Free Hvy. Phase Cannon | -7/Data Miner | Free Plasma Rifle | -7/Data Miner | Free Enh. Gauss Cannon | -7/Data Miner | Free Imp. Linear Gravjet | -7/Data Miner | Free Imp. Armor Integrity Analyzer | -7/Data Miner | Free Hvy. Dispersion Rifle | -2/Quarantine | Archive Adv. Particle Accelerator | -2/Quarantine | Archive Adv. Plasma Rifle | -2/Quarantine | Archive Com. Mass Driver | -2/Quarantine | Archive Exp. Thermal Shield | -2/Quarantine | Archive Vortex Chain Reactor | -2/Quarantine | Archive Gravity Neutralizer | -2/Quarantine | Archive Exp. Shield Generator | -2/Quarantine | Archive Prc. Matter Filter | -2/Section 7 | Archive Electron Diverter | -2/Section 7 | Archive Robot Schematics ------------------ X-62 Marksman | -7/Data Miner | Free B-48 Gladiator | -7/Data Miner | Free W-25 Informer | -7/Data Miner | Free R-10 Processor | -7/Data Miner | Free B-60 Warrior | -7/Data Miner | Free L-41 Fighter | -7/Data Miner | Free Fabricated ------------ Hardcell Cannon | x2 | -6/Factory | Preloaded Repaired ---------- Lgt. Treads | 66% | -10/Materials Lgt. Armor Plating | 17% | -8/Materials Arm. Huge Wheel | 44% | -6/Factory Adv. Shield Generator | 14% | -4/Factory Studied --------- Wheel | -8/Materials | Hacked Com. Wheel | -8/Materials | Hacked Centrium Wheel | -2/Quarantine | Hacked Alien Tech Used ----------------- Phase Armor Terrabomb Transdimensional Reconstructor LRC Storage Core Cannon High-powered Transdimensional Reconstructor Matter Drive Integrated Dissipator Integrity Redistributor Phase Redirector Achievements -------------- 75k Club Chaotic Teddy Bear Cool Guys Ew, Corruption Let Me Out Of Here Like A Rock Tank Life Well-fed Force Field Challenges ------------ None Game ------ Seed TowerSignalSaw Manual? 0 Play Time 12:14:04 Cumulative 682.1 hours Start 2026.07.13 @ 09:51:08 End 2026.08.04 @ 12:43:29 Sessions 7 Manual Loads 0 Difficulty Rogue Special Mode None Game No. 180 Rogue 180 Adventurer 0 Explorer 0 Win Type 0 Total 50 Types 35/0/6/3/1/1/1/2/0/1 Lore% 50 Gallery% 72 Achievement% 59 Wizard Run 0 Options --------- Layout 2 ASCII 0 Keyboard 0 Movement Numpad Keybinds 0 Fullscreen 2 Font 24/Smallcaps Map View 50x44 Zoom Use 0% Tactical HUD 1 Map Filters NONE Filters NONE Steam 1 RUN: 809016e0-e74c-4857-a1d6-d07b1999fbe0